Cogmind - Beta 9.2 @@@ ROGUE MODE // 2019.12.08 @ 23:24:28 Player: Valguris Result: Destroyed by G-73 Enforcer with Heavy Laser Performance ------------- Evolutions (9) 4500 Regions Visited (42) 8400 Robots Destroyed (642) 3210 Value Destroyed (29284) 29284 Prototype IDs (244) 4880 Alien Tech Used (4) 800 Bonus (37868) 37868 TOTAL SCORE: 88942 Bonus ------- High Alert Combat Kills 4744 Follower Combat Kills 3242 Entered Garrisons 800 Used RIF Installer 2000 Network Hubs Disabled 400 Met Data Miner 300 Used Data Conduit 3000 Exposed GOLEM Chamber 2500 MAIN.C Attacked Warlord 500 Built Enhanced Grunts 300 A7 Reached Mainframe 300 Met R17 at Cetus 500 Found Hidden Lab 3000 Decrypted A0 Command 3000 Met R17 at Research 2000 Pursued by Intercept 3000 Met MAIN.C 5000 Hacked MAIN.C 300 Destroyed MAIN.C Shell 5000 Friendly Fire -2018 Cogmind --------- Core Integrity 0/1600 Matter 264/300 Energy 79/100 System Corruption 21% Temperature Cool (18) Movement Core (50) Location -1/Command Parts ------- > --- POWER (3) -------- (None) > --- PROPULSION (3) --- (None) > --- UTILITY (13) ----- (None) > --- WEAPON (6) ------- (None) > --- INVENTORY (4) ---- Particle Reactor Hypervelocity Mass Driver Peak State ------------ > --- POWER ------------ Light Ion Engine Quantum Reactor Improved Quantum Reactor > --- PROPULSION ------- Biometal Medium Treads Armored Heavy Treads > --- UTILITY ---------- Advanced Cooling System High-capacity Storage Unit High-capacity Storage Unit High-capacity Storage Unit Advanced Signal Interpreter Long-range Terrain Scanner Surveybot 24 Chip Makeshift Salvage Targeting Computer Experimental Targeting Computer Precision Matter Filter Advanced Phase Shifter System Mapper Relay Coupler [NC] > --- WEAPON ----------- Cooled Nova Cannon Gamma Bomb Array Gamma Bomb Array Guided Remote Datajack Molecular Deconstructor > --- INVENTORY -------- Light Antimatter Reactor Particle Reactor Quantum Reactor Biometal Heavy Treads Wheel Wheel Wheel Wheel Advanced Coolant Injector High-capacity Storage Unit Experimental Energy Well Improved Matter Compressor Experimental Optical Array Long-range Sensor Array Experimental Targeting Computer Zionite Weapon Casing Heavy Armor Plating Transdimensional Reconstructor Heavy Laser KE Penetrator KE Penetrator Hypervelocity Mass Driver Gamma Bomb Array Neutron Missile Launcher Advanced Micro-nuke Launcher Ragnarok Missile Launcher [Rating: 178] Favorites ----------- Power Angular Momentum Engine Engine Angular Momentum Engine Power Core Light Nuclear Core Reactor Quantum Reactor Propulsion Armored Huge Wheel Treads Armored Medium Treads Leg Aluminum Leg Wheel Armored Huge Wheel Hover Unit Aerolev Unit Flight Unit Flight Unit Utility High-capacity Storage Unit Device Advanced Sensor Array Storage High-capacity Storage Unit Processor Advanced Signal Interpreter Hackware System Mapper Protection Damper Plating Weapon Heavy Plasma Cannon Energy Gun Gamma Rifle Energy Cannon Heavy Plasma Cannon Ballistic Gun Improved KE Penetrator Ballistic Cannon Light Cannon Launcher Gamma Bomb Array Special Weapon Molecular Deconstructor Slashing Weapon Chainsword Special Melee Weapon Dirty Datajack Build | -11 -10 -10 -10 -9 -8 -8 -8 -8 -7 -7 -7 -7 -7 -7 -6 -6 -6 -6 -6 -6 -5 -5 -5 -5 -5 -5 -5 -4 -4 -4 -4 -4 -4 -3 -3 -3 -3 -2 -2 -2 -1 -1 ------- Run | Scr Mat Min Exi Min Mat Gar Mat Gar Fac Was Fac Low Low Dat Pro Fac Low Low Zio Dee Pro Fac Ext Cet Arc Hub Gar Fac Was Fac Upp Upp War Pro Res Arm Lab Res Tes Gar Acc Com Slots Evolved 18 | . . . . . 4 . . . 2 . . . . . . 2 . . . . . 2 . . . . . 2 . . . . . . 2 . . 2 . . 2 . Power 2 | . . . . . . . . . . . . . . . . 1 . . . . . . . . . . . . . . . . . . . . . . . . 1 . Propulsion 1 | . . . . . 1 . . . . . . . . . . . . . . . . . . . . . . . . . . . . . . . . . . . . . Utility 11 | . . . . . 3 . . . 2 . . . . . . 1 . . . . . 2 . . . . . 2 . . . . . . . . . . . . 1 . Weapon 4 | . . . . . . . . . . . . . . . . . . . . . . . . . . . . . . . . . . . 2 . . 2 . . . . Parts Attached 901 | 7 10 15 4 10 35 1 8 10 30 24 30 19 6 10 33 26 20 18 59 19 23 8 33 16 3 19 18 4 11 29 8 17 . 22 47 69 12 34 14 16 71 33 Power 46 | 1 1 2 . 2 4 . 1 . 1 1 . . . . 1 3 . 1 4 . 1 . . 2 . . . . 1 . . . . . 2 5 . 1 1 . 7 4 Engine 14 | 1 1 1 . . 2 . 1 . . . . . . . . 3 . 1 1 . . . . . . . . . . . . . . . . . . . . . 2 1 Core 10 | . . 1 . 2 2 . . . 1 . . . . . . . . . 3 . 1 . . . . . . . . . . . . . . . . . . . . . Reactor 22 | . . . . . . . . . . 1 . . . . 1 . . . . . . . . 2 . . . . 1 . . . . . 2 5 . 1 1 . 5 3 Propulsion 99 | 2 2 3 . 4 8 . 1 7 9 . 4 . 3 1 4 4 1 2 10 3 2 1 4 2 . 1 . . . 1 . . . . 2 5 . . 1 2 7 3 Treads 57 | 2 2 2 . . 4 . 1 5 2 . 1 . . . 1 2 . . 6 2 2 1 2 2 . 1 . . . 1 . . . . 2 5 . . 1 2 5 3 Leg 6 | . . 1 . 1 1 . . . . . . . . . 2 . . . . . . . 1 . . . . . . . . . . . . . . . . . . . Wheel 31 | . . . . 2 3 . . 2 6 . 3 . 2 1 1 2 1 2 4 . . . . . . . . . . . . . . . . . . . . . 2 . Hover 4 | . . . . . . . . . 1 . . . 1 . . . . . . 1 . . 1 . . . . . . . . . . . . . . . . . . . Flight 1 | . . . . 1 . . . . . . . . . . . . . . . . . . . . . . . . . . . . . . . . . . . . . . Utility 447 | 2 4 3 3 2 9 1 4 . 5 15 8 11 . 3 14 12 9 7 15 11 13 3 18 7 2 16 12 4 7 28 8 17 . 22 26 37 8 25 6 7 37 6 Device 277 | . . 2 1 1 4 . 1 . 2 9 6 10 . 2 7 6 5 5 11 8 10 2 13 3 2 11 6 1 5 22 5 9 . 15 15 24 4 15 3 5 25 2 Storage 31 | 2 3 1 2 1 1 . . . 1 . 1 . . . 3 . 1 . . . . . 1 . . . . . 1 2 . . . . . 1 2 1 1 1 5 . Processor 13 | . 1 . . . . . . . . . 1 1 . . . 1 . . . . 1 . . . . . . 1 . 2 . . . . 1 1 . . . . 2 1 Hackware 6 | . . . . . . . 1 . . 1 . . . . . 1 1 . . . . . . . . . 1 . . . . . . . . . . . 1 . . . Protection 120 | . . . . . 4 1 2 . 2 5 . . . 1 4 4 2 2 4 3 2 1 4 4 . 5 5 2 1 2 3 8 . 7 10 11 2 9 1 1 5 3 Artifact . | . . . . . . . . . . . . . . . . . . . . . . . . . . . . . . . . . . . . . . . . . . . Weapon 309 | 2 3 7 1 2 14 . 2 3 15 8 18 8 3 6 14 7 10 8 30 5 7 4 11 5 1 2 6 . 3 . . . . . 17 22 4 8 6 7 20 20 Energy Gun 56 | 2 1 . . 1 10 . 2 1 1 . 2 . . . . 1 . . . . . . 1 . . . 2 . . . . . . . 11 5 2 4 4 . 1 5 Energy Cannon 115 | . . 2 . . 1 . . 2 9 4 11 4 . 3 4 5 6 5 12 3 5 2 6 2 1 1 2 . . . . . . . 3 9 1 2 1 4 4 1 Ballistic Gun 32 | . . . . 1 2 . . . 1 . . . . . . . . . 6 . . 1 . . . . . . 1 . . . . . 2 4 . 2 . 1 8 3 Ballistic Cannon 24 | . 2 2 . . 1 . . . 1 . 1 1 . . 2 . . . 9 . . . . 1 . . . . . . . . . . . . . . . 1 . 3 Launcher 40 | . . 2 . . . . . . . . 1 . . 2 7 1 2 3 2 2 2 . . 2 . 1 2 . . . . . . . . 3 . . . 1 4 3 Special Weapon 27 | . . . . . . . . . 1 2 1 . 1 1 . . 1 . 1 . . 1 4 . . . . . 2 . . . . . 1 1 1 . 1 . 3 5 Impact Weapon . | . . . . . . . . . . . . . . . . . . . . . . . . . . . . . . . . . . . . . . . . . . . Slashing Weapon 14 | . . 1 1 . . . . . 2 2 2 3 2 . 1 . . . . . . . . . . . . . . . . . . . . . . . . . . . Piercing Weapon . | . . . . . . . . . . . . . . . . . . . . . . . . . . . . . . . . . . . . . . . . . . . Special Melee Weapon 1 | . . . . . . . . . . . . . . . . . 1 . . . . . . . . . . . . . . . . . . . . . . . . . Unidentified Prototypes 24 | . . . . . 3 . 1 . 3 . 1 . . . . 1 . . 1 3 . . . . . . . . 2 . . . . 1 1 . 6 . . . . 1 Parts Lost 156 | . 1 13 . 3 18 . . . . . 2 . . . 8 4 2 4 5 1 4 2 1 1 . 1 1 . . . . . . . 4 14 . 1 1 11 29 25 Power 25 | . 1 2 . . 3 . . . . . . . . . 1 1 . 1 1 . 1 . . . . . . . . . . . . . . 4 . . . . 6 4 Propulsion 28 | . . 4 . 1 5 . . . . . 1 . . . 2 . 1 . 1 . . 1 1 . . . . . . . . . . . . 1 . . . 2 4 4 Utility 43 | . . 1 . 1 2 . . . . . . . . . 3 2 . 3 2 1 1 . . 1 . 1 . . . . . . . . 1 4 . . . 2 7 11 Weapon 60 | . . 6 . 1 8 . . . . . 1 . . . 2 1 1 . 1 . 2 1 . . . . 1 . . . . . . . 3 5 . 1 1 7 12 6 Highest Loss Streak 23 | . 1 13 . 2 7 . . . . . 1 . . . 4 1 1 2 5 1 3 2 1 1 . 1 1 . . . . . . . 4 9 . 1 1 11 21 23 Average Slot Usage (%) 88 | . 100 66 71 89 85 90 89 81 83 78 84 83 84 80 86 92 92 92 89 88 99 99 99 94 94 89 87 88 84 86 88 88 78 88 89 90 87 92 94 86 86 82 Engine 5 | . 14 2 . . 3 . 1 9 5 . . . . . . 9 13 12 12 6 6 5 5 . . . . . . . . . . . . . . . . . 1 3 Core 1 | . . 9 14 14 5 9 7 . 1 1 . . . . . . . . . 6 6 5 5 . . . . . . . . . . . . . . . . . . . Reactor 3 | . . . . . . . . . . 5 7 7 7 7 6 2 . . . . . . . 9 11 11 11 10 7 5 5 5 5 5 5 8 9 8 8 8 8 7 Treads 6 | . 28 8 . . 9 9 9 25 4 . . . . . . 2 . . 1 20 20 16 16 13 11 11 11 10 10 9 10 10 10 10 9 9 9 8 8 7 8 7 Wheel 7 | . . . . 5 16 18 18 1 18 23 15 15 15 14 7 10 12 13 11 . . . . . . . . . . . . . . . . . . . . . . . Device 13 | . . 8 13 10 16 18 17 9 14 3 15 14 15 10 15 11 15 16 16 7 15 23 22 16 16 10 10 12 17 16 11 9 . 9 8 11 11 14 15 13 16 12 Storage 19 | . 28 12 11 14 9 9 9 9 14 15 15 15 15 15 22 20 20 20 20 20 20 17 17 21 23 23 23 21 23 26 26 26 26 26 23 22 20 17 17 17 13 11 Processor 7 | . . . . . . . . . . . 7 15 15 15 4 2 6 6 4 . 6 5 5 5 5 5 5 10 10 11 15 15 15 15 14 10 9 8 8 8 11 15 Hackware 4 | . . . . . . . . . . 6 6 . . . . 4 6 6 6 6 6 5 5 5 5 5 5 5 5 5 5 5 5 5 4 4 4 4 7 8 8 3 Protection 3 | . . . . . 6 9 9 9 7 6 . . . 2 7 12 4 2 1 7 3 4 5 5 5 7 5 6 1 . 3 4 5 4 4 2 3 3 2 1 . 2 Energy Gun 1 | . 4 . . 6 14 18 18 14 2 . . . . . . . . . . . . . 2 . . . 1 5 . . . . . . 11 5 4 5 11 3 . 2 Energy Cannon 8 | . . 3 . . . . . 3 11 10 13 13 7 10 3 12 12 12 10 5 10 9 7 8 11 11 8 5 6 10 10 10 10 10 4 10 12 11 4 7 5 2 Ballistic Gun 1 | . . . . 9 . . . . . . . . . . . . . . . 4 . . . . . . . . . . . . . . 1 1 . 8 8 4 5 4 Ballistic Cannon 1 | . 23 5 . . 2 . . . . . 1 . . . 4 . . . . 1 . . . . . . . . . . . . . . . . . . . 2 2 1 Naked Turns 6 | . . . . . . . . . . . . . . . . . . . . . . . . . . . . . . . . . . . . . . . . . . 6 Heaviest Build 284 | 15 41 41 32 89 102 96 105 107 148 183 145 141 141 162 150 185 175 162 183 170 134 147 154 178 180 190 190 187 206 244 210 244 244 244 233 251 251 284 252 226 269 228 Greatest Support 110 | 40 40 40 10 20 40 26 26 60 60 30 70 38 38 38 38 44 44 44 84 84 76 76 75 107 107 107 107 107 107 107 107 107 107 107 108 108 108 108 108 108 110 95 Greatest Overweight (x) 9 | 1 1 1 3 8 9 4 4 5 5 6 4 3 4 4 5 5 3 3 6 2 1 2 3 2 1 1 1 1 1 2 1 2 2 2 2 2 2 2 2 2 9 2 Average Overweight (x) 2 | . . . . 3 3 3 3 1 3 5 3 3 3 3 4 3 3 3 5 1 1 1 1 1 1 1 1 1 1 1 1 1 2 1 1 1 1 2 2 1 1 1 Largest Inventory Capacity 52 | 8 16 16 14 24 44 24 24 24 32 32 52 32 32 32 34 28 36 28 28 28 28 28 32 28 28 28 28 28 36 36 36 36 36 36 36 36 36 36 36 36 36 28 Average Capacity 29 | 6 10 10 7 13 24 24 24 24 31 32 32 32 32 32 29 28 28 28 28 28 28 28 28 28 28 28 28 28 31 36 36 36 36 36 36 35 36 36 36 31 29 26 Most Carried 36 | 6 14 14 12 20 24 24 24 24 32 32 32 32 32 32 32 28 29 28 28 28 28 28 29 28 28 28 28 28 36 36 36 36 36 36 36 36 36 36 36 36 35 28 Average Carried 28 | 4 8 7 6 11 22 23 23 23 30 31 31 31 31 31 27 27 27 27 27 27 27 27 27 27 28 27 27 26 31 35 35 35 36 35 35 33 35 35 35 30 26 25 Final Capacity 36 | 8 16 4 10 24 24 24 24 24 32 32 32 32 32 32 28 28 28 28 28 28 28 28 28 28 28 28 28 28 36 36 36 36 36 36 36 36 36 36 36 28 28 4 Final Carried 36 | 6 14 4 10 20 24 24 24 24 32 32 32 32 32 32 28 28 28 28 28 28 28 26 28 28 28 28 28 28 36 36 36 36 36 36 36 36 36 36 36 27 28 2 Class Distribution -------------------- 33% | Hauler-Skirmisher 29% | Hauler-Mutant 19% | Scavenger-Mutant 5% | Scavenger-Skirmisher 4% | Mutant 4% | Hauler-Assassin Dominant Class ---------------- Mutant | -10/Materials Mutant | -10/Mines Mutant | -10/Exiles Scavenger-Mutant | -9/Mines Scavenger-Mutant | -8/Materials Scavenger-Mutant | -8/Garrison Scavenger-Mutant | -8/Materials Hauler-Mutant | -8/Garrison Hauler-Mutant | -7/Factory Hauler-Mutant | -7/Waste Hauler-Mutant | -7/Factory Hauler-Skirmisher | -7/Lower Caves Hauler-Assassin | -7/Lower Caves Hauler-Skirmisher | -7/Data Miner Hauler-Mutant | -6/Proximity Caves Hauler-Mutant | -6/Factory Hauler-Mutant | -6/Lower Caves Hauler-Skirmisher | -6/Lower Caves Hauler-Skirmisher | -6/Zion Scavenger-Mutant | -6/Deep Caves Scavenger-Skirmisher | -5/Proximity Caves Scavenger-Skirmisher | -5/Factory Scavenger-Mutant | -5/Extension Hauler-Mutant | -5/Cetus Commander-Skirmisher | -5/Archives Hauler-Mutant | -5/Hub_04(d) Hauler-Mutant | -5/Garrison Hauler-Skirmisher | -4/Factory Hauler-Skirmisher | -4/Waste Hauler-Skirmisher | -4/Factory Hauler-Skirmisher | -4/Upper Caves Hauler-Skirmisher | -4/Upper Caves Hauler-Mutant | -4/Warlord Hauler-Skirmisher | -3/Proximity Caves Hauler-Skirmisher | -3/Research Scavenger-Skirmisher | -3/Armory Scavenger-Mutant | -3/Lab Scavenger-Mutant | -2/Research Scavenger-Mutant | -2/Testing Scavenger-Gunner | -2/Garrison Scavenger-Mutant | -1/Access Scavenger-Mutant | -1/Command Resources | -11 -10 -10 -10 -9 -8 -8 -8 -8 -7 -7 -7 -7 -7 -7 -6 -6 -6 -6 -6 -6 -5 -5 -5 -5 -5 -5 -5 -4 -4 -4 -4 -4 -4 -3 -3 -3 -3 -2 -2 -2 -1 -1 ----------- Run | Scr Mat Min Exi Min Mat Gar Mat Gar Fac Was Fac Low Low Dat Pro Fac Low Low Zio Dee Pro Fac Ext Cet Arc Hub Gar Fac Was Fac Upp Upp War Pro Res Arm Lab Res Tes Gar Acc Com Matter Collected 14997 | 270 399 26 161 143 493 10 41 119 305 366 501 371 60 155 502 214 278 218 1324 220 292 105 496 200 30 190 234 40 258 318 107 160 10 230 525 827 185 580 460 459 2361 754 Remotely 223 | . . . . . . . . . . . . . . . . . . . . . . . . . . . . . . . . 10 . . . . . . . . 213 . Salvage Created 36065 | 90 763 21 . 291 1887 322 276 664 426 1603 831 145 252 454 1031 865 546 187 1450 1101 551 323 716 461 . 1344 450 99 1654 1451 56 129 128 857 1615 3123 70 2392 459 480 4483 2019 Parts 1420 | 3 47 . . 18 92 15 13 32 23 24 46 . 2 19 36 39 15 7 107 15 24 13 20 24 . 48 21 8 32 57 4 13 6 52 80 91 8 132 17 8 158 51 Haulers Intercepted 21 | . 2 . . . 4 . 1 . 2 . 3 . . . 1 1 . . . . . . 1 . . 3 . . . . . . . . 1 . . . . . 2 . Recyclers Shooed 17 | . 1 . . 1 2 . . . . . . . . . . 3 . . . . . 1 . . . . . . . . . . . . . . . 2 . . 7 . Parts Field Recycled . | . . . . . . . . . . . . . . . . . . . . . . . . . . . . . . . . . . . . . . . . . . . Retrieved Matter . | . . . . . . . . . . . . . . . . . . . . . . . . . . . . . . . . . . . . . . . . . . . Parts Self-Destructed 125 | . . . . . . . . . . . . 3 . . 13 . 7 11 4 . 3 . . . . . . . . . 10 22 . 52 . . . . . . . . Prevented 57 | . . . . . . . . . . . . . . . 22 . 9 7 . . 19 . . . . . . . . . . . . . . . . . . . . . Kills | -11 -10 -10 -10 -9 -8 -8 -8 -8 -7 -7 -7 -7 -7 -7 -6 -6 -6 -6 -6 -6 -5 -5 -5 -5 -5 -5 -5 -4 -4 -4 -4 -4 -4 -3 -3 -3 -3 -2 -2 -2 -1 -1 ------- Run | Scr Mat Min Exi Min Mat Gar Mat Gar Fac Was Fac Low Low Dat Pro Fac Low Low Zio Dee Pro Fac Ext Cet Arc Hub Gar Fac Was Fac Upp Upp War Pro Res Arm Lab Res Tes Gar Acc Com Combat Hostiles Destroyed 454 | . 18 9 . 8 31 9 2 15 4 6 12 2 . 4 21 12 10 5 9 11 8 5 6 6 . 15 12 2 6 21 2 3 . 15 16 43 1 27 6 14 49 9 Melee 4 | . . . . 4 . . . . . . . . . . . . . . . . . . . . . . . . . . . . . . . . . . . . . . Guns 95 | . 4 . . . 20 9 2 13 . . . . . . . . . . . 2 . 2 1 . . . 2 . . . . . . . 7 11 . 11 1 . 10 . Cannons 172 | . 14 1 . . 9 . . 2 4 6 8 1 . . 3 10 4 1 6 1 5 2 5 . . 11 2 2 . 20 2 3 . 15 2 11 1 7 1 3 9 1 AOE 93 | . . 8 . 4 2 . . . . . 2 . . . 15 2 4 4 . . 3 1 . . . 3 6 . . . . . . . 2 3 . . 2 10 18 4 Classes Destroyed 30 | 1 5 2 . 3 2 . . . 2 1 . 1 . . . . 1 . 3 2 . . 1 . . . . . . . . . 1 . . 2 . 1 . . . 2 Worker 27 | . . . . 1 4 . . . 1 . 1 . . . . 1 . . . . . 4 . . . 1 . . . 1 . . . . 2 . . 1 . . 10 . Builder 19 | . . . . 1 . . . . . . 3 . . . . 3 . . . . . . . . . 1 . . . . . . . . . . . 2 1 . 8 . Tunneler 5 | . 1 . . 1 . . . . . . 1 . . . . . . . . . . . . . . . . . . 1 . . . . . . . . . . 1 . Hauler 21 | . 2 . . . 4 . 1 . 2 . 3 . . . 1 1 . . . . . . 1 . . 3 . . . . . . . . 1 . . . . . 2 . Recycler 19 | 1 2 . . 1 2 . 2 . 1 . . . . . . 1 . . . . . 1 1 . . . . . . . . . . . 1 . . 1 . . 5 . Carrier 1 | . . . . . . . . . . . . . . . . . . . . . . . . . . . . . . . . . . . . . . . . . . 1 Minesweeper 2 | . . . . . . . . . . . . . . . . . 2 . . . . . . . . . . . . . . . . . . . . . . . . . Mechanic 1 | . . . . . . . . . 1 . . . . . . . . . . . . . . . . . . . . . . . . . . . . . . . . . Operator 3 | . . . . . . . . . . . . . . . . . . . . . . 1 . . . . . . . . . . . . 1 1 . . . . . . Drone 1 | . . . . . . . . . . . . . . . . . . . . . . . . . . . . . . . . . . . . . . 1 . . . . Watcher 15 | . 3 . . . 3 . . . . . 1 . . . . . . . . . . 1 . . . . . . . 2 . . . . 1 . . 1 . . 3 . Swarmer 82 | . 6 . . 4 3 4 . 3 . . 4 . . . 7 3 3 2 . . . 5 . . . . 8 . . . 2 1 . 7 . 5 . . 2 4 9 . Saboteur 3 | . . . . . . . . . . . . . . . . . . . . . . . . . . . . . . . . . . . . 1 . 1 . . 1 . Grunt 135 | . 12 . . 3 20 3 1 7 1 . 3 . . . 11 3 6 1 . . 4 . 4 . . 5 2 . . 3 . . . 3 5 13 . 6 2 3 13 1 Brawler 9 | . . . . 1 . . . . . . 1 . . . . . . 1 . . . . . . . . . . . . . . . . . 3 . . . 1 . 2 Duelist 7 | . . . . . 2 . . . . . . . . . 2 . . . . . . . . . . . . . . . . . . . . 1 . 1 . . . 1 Protector 1 | . . . . . . . . . . . . . . . . . . . . . . . . . . . . . . . . . . . . . . . . . . 1 Sentry 44 | . . . . . 6 2 1 5 2 . 3 1 . . 1 1 1 1 . . . . 1 . . 3 1 . . 2 . . . 1 3 3 . 3 . 2 1 . Demolisher 5 | . . 1 . . . . . . . . . . . . . . . . . . . . . . . . . . . . . . . . . 4 . . . . . . Specialist 2 | . . . . . . . . . . . . . . . . . . . . . . . . . . . . . . . . . . . . 2 . . . . . . Hunter 47 | . . . . . . . . . . . . 1 . . . . . . . . 3 . . . . 3 . . . 4 . . . . 3 7 . 4 2 2 16 2 Programmer 54 | . . . . . . . . . 1 . 1 . . . . 3 . . . . 1 . . . . 3 1 2 . 9 . 2 . 4 5 3 . 12 . 1 5 1 Behemoth 2 | . . . . . . . . . . . . . . . . . . . . . . . 1 . . . . . . . . . . . . . . . . 1 . . Compactor 12 | . . . . . . . . . . 6 . . . . . . . . . . . . . . . . . . 6 . . . . . . . . . . . . . Cetus Guard 6 | . . . . . . . . . . . . . . . . . . . . . . . . 6 . . . . . . . . . . . . . . . . . . Enhanced Grunt 4 | . . . . . . . . . . . . . . 4 . . . . . . . . . . . . . . . . . . . . . . . . . . . . Tracker 5 | . . . . . . . . . . . . . . . . 1 . . . . . . . . . 1 . . . 1 . . . . . . . . . . 2 . Combat Programmer 6 | . . . . . . . . . . . . . . . . 1 . . . . . . . . . 1 . . . 1 . . . . . 1 . . . . 2 . Zionite 48 | . . . . . . . . . . . . . . . . . . . 48 . . . . . . . . . . . . . . . . . . . . . . . Z-Technician 5 | . . . . . . . . . . . . . . . . . . . . 5 . . . . . . . . . . . . . . . . . . . . . . Packrat 5 | . . . . . . . . . . . . 1 4 . . . . . . . . . . . . . . . . . . . . . . . . . . . . . Tinkerer 8 | . . . . . . . . . . . . . . . . . . . 8 . . . . . . . . . . . . . . . . . . . . . . . Demented 3 | . . . . . . . . . . . . . . . . . . . . . . . . . . . . . . . . . 3 . . . . . . . . . Assembled 11 | . . 8 . . . . . . . . . . . . . . . . . 3 . . . . . . . . . . . . . . . . . . . . . . Golem 8 | . . . . . . . . . . . . . . . . . . . . 8 . . . . . . . . . . . . . . . . . . . . . . Thug 2 | . . . . . . . . . . . . . . . . . . . 1 . . . . . . . . . . 1 . . . . . . . . . . . . Savage 1 | . . . . . . . . . . . . . . . . . . . . . . . 1 . . . . . . . . . . . . . . . . . . . Butcher 2 | . . . . . . . . . . . . . . . . . . . 1 . . . 1 . . . . . . . . . . . . . . . . . . . Mutant 5 | . . . . . . . . . . . . . . . . . . . 5 . . . . . . . . . . . . . . . . . . . . . . . Best Kill Streak 25 | 1 4 8 . 4 5 3 4 4 2 1 4 1 . 4 5 4 4 2 10 3 3 8 2 4 . 8 10 1 2 8 2 1 . 6 4 16 1 9 3 13 25 6 Combat Bots Only 18 | . 3 8 . 4 5 3 1 4 2 1 4 1 . 4 5 2 4 2 2 3 3 5 2 4 . 5 10 1 2 7 2 1 . 6 4 16 1 8 3 13 18 5 Max Kills in Single Turn 5 | 1 2 4 . 3 2 1 2 2 1 1 1 1 1 1 3 2 3 1 3 1 3 2 1 1 . 3 3 1 1 1 1 1 1 1 4 2 1 2 2 2 5 2 Gunslinging 1 | . 1 . . . . . . . . . . . . . . . . . . . . . . . . . . . . . . . . . . 1 . . . . . . Exploded 4 | . . 4 . 3 2 . . . . . 1 . . . 3 1 3 1 . . 3 1 . . . 2 3 . . . . . . . 2 2 . . 2 2 3 2 Melee 1 | . . . . 1 . . . . . . . . . . . . . . . . . . . . . . . . . . . . . . . . . . . . . . Uniques/NPCs Destroyed 6 | . . . . . . . . . . . . . . 1 . . . . 2 . . . . . . . . . . . . . . . 1 . 1 . . . . 1 Data Miner (-7/Data Miner) 1C-UTU (-6/Zion) Imprinter (-6/Zion) Revision 17++ (-3/Research) A5 (-3/Lab) MAIN.C Shell (-1/Command) Combat | -11 -10 -10 -10 -9 -8 -8 -8 -8 -7 -7 -7 -7 -7 -7 -6 -6 -6 -6 -6 -6 -5 -5 -5 -5 -5 -5 -5 -4 -4 -4 -4 -4 -4 -3 -3 -3 -3 -2 -2 -2 -1 -1 -------- Run | Scr Mat Min Exi Min Mat Gar Mat Gar Fac Was Fac Low Low Dat Pro Fac Low Low Zio Dee Pro Fac Ext Cet Arc Hub Gar Fac Was Fac Upp Upp War Pro Res Arm Lab Res Tes Gar Acc Com Damage Taken 41422 | . 366 1255 . 317 1729 211 123 684 188 . 840 79 . 836 1507 925 659 306 2697 277 755 317 303 294 28 1087 790 224 . 1589 96 2 42 317 1671 5203 48 1074 988 2153 6337 5105 Core 3462 | . 38 87 . 89 86 10 . 49 40 . 102 . . 93 182 132 67 . 207 12 88 20 . . . 27 55 . . 70 . . . . 54 169 . 65 59 52 418 1191 Absorbed by Shields 6428 | . . . . . . 49 . . . . . . . . . . . . . . . 124 107 150 . . . . . . . . . . . 296 . 942 587 860 3313 . Reduced by Siege Mode 618 | . . . . . . . . . . . 8 . . . . 10 . . 11 . . . . . . 24 . . . 29 4 . . 6 34 164 3 55 . 219 41 10 Core Remaining (%) 70 | 100 . . . 14 . . . 73 . . . . . . 40 . . . . . 40 . . . . . 89 . . . . . . 93 . . 100 . . 87 . . Volleys Fired 1758 | 3 52 13 . 12 125 24 17 51 20 77 54 19 . 10 26 46 51 27 161 91 24 23 74 16 4 54 21 15 24 72 10 5 5 25 40 104 27 79 17 18 142 80 Largest 6 | 2 2 2 . 2 2 2 2 2 2 2 2 2 . 2 2 2 2 2 2 2 2 2 2 2 2 2 2 2 1 2 2 2 2 2 4 4 2 6 4 4 6 2 Hottest 466 | 90 100 95 . 85 130 122 122 129 143 136 148 148 . 78 148 180 180 180 180 138 180 159 190 94 115 115 125 125 . 50 50 50 50 50 293 396 233 466 314 338 338 160 Shots Fired 3184 | 6 104 21 . 20 239 43 34 97 37 124 94 28 . 12 42 75 71 44 289 106 36 41 100 18 8 97 30 29 24 132 17 9 10 47 123 224 49 184 40 41 356 83 Gun 1019 | 6 28 . . 16 193 43 34 83 . . 1 . . . . . . . 56 7 . 8 18 . . . 4 14 . . . . . . 86 119 . 94 27 9 173 . Cannon 1887 | . 76 18 . . 46 . . 14 36 118 85 28 . 1 23 74 65 37 224 99 28 32 57 9 8 94 18 15 . 132 17 9 10 47 36 96 49 90 11 25 130 30 Launcher 136 | . . 3 . 4 . . . . . . 7 . . 10 19 1 5 7 7 . 8 . . 9 . 3 8 . . . . . . . . 2 . . . 7 27 9 Special 142 | . . . . . . . . . 1 6 1 . . 1 . . 1 . 2 . . 1 25 . . . . . 24 . . . . . 1 7 . . 2 . 26 44 Kinetic 681 | . 76 8 . 8 60 . . . . . 13 10 . . 12 . . . 124 14 . 8 1 . . . . . . . . . . . 19 35 . 47 . 12 231 3 Thermal 1725 | 3 28 10 . 8 160 43 34 97 36 118 72 18 . . 7 74 64 36 101 48 18 14 64 5 8 94 22 29 . 132 17 9 10 47 46 36 49 61 3 12 65 27 Explosive 39 | . . 3 . 4 . . . . . . . . . . 5 1 1 2 7 . . . . . . . 1 . . . . . . . . 2 . . . 7 3 3 Electromagnetic 598 | 3 . . . . 19 . . . . . 9 . . 11 18 . 5 6 55 44 18 18 10 13 . 3 7 . . . . . . . 57 144 . 76 35 10 31 6 Robot Hit Streak 68 | 3 9 25 . 7 14 7 8 30 10 14 10 5 . 8 8 11 25 11 30 14 20 23 28 19 7 14 7 9 5 32 15 15 22 51 65 28 11 19 6 17 18 68 Robot Miss Streak 6 | 1 2 1 . 6 6 3 1 1 1 2 2 2 . 1 2 2 3 2 5 5 3 2 2 . 1 2 2 3 2 1 1 . . . 2 4 5 3 2 2 5 . Penetration Max 1 | . . . . . . . . . . . . . . . . . . . . . . . . . . . . . . . . . . . 1 . . 1 . . 1 . Secondary Targets 13 | . 1 . . . . 1 . 1 . . . . . . . . . . . . . . . . . . . . . . . . . . 1 4 . 3 1 . 1 . Max Gunslinging Chain 1 | . 1 . . . . 1 . 1 . . . . . . . . . . . . . . . . . . . . . . . . . . 1 1 . 1 1 . 1 . Shots Hit Robots 2123 | 4 72 19 . 20 177 26 27 71 25 94 62 7 5 10 34 47 29 16 191 49 23 23 69 7 7 70 16 26 16 94 10 6 7 29 94 178 31 119 21 33 201 58 Core Hits 1097 | 2 30 15 . 18 76 13 9 28 13 21 28 4 3 13 43 35 20 9 103 36 15 12 24 16 1 34 18 5 . 31 2 3 3 18 46 56 10 41 10 37 174 22 Critical Hits 80 | . 2 1 . . 1 . . 1 4 16 5 1 . . 1 1 1 1 3 1 . . . . . . . . . . . . . . 6 9 . 13 1 2 9 1 Critical Kills 29 | . . . . . 1 . . . 2 2 2 . . . . . 1 . 2 1 . . . . . . . . . . . . . . 1 3 . 6 1 . 6 1 Critical Parts Destroyed 32 | . 2 1 . . . . . 1 1 1 3 1 . . 1 1 . 1 1 . . . . . . . . . . . . . . . 4 4 . 7 . 1 2 . Melee Attacks 55 | . . . . 11 . . . . 5 13 4 11 9 1 1 . . . . . . . . . . . . . . . . . . . . . . . . . . . Impact . | . . . . . . . . . . . . . . . . . . . . . . . . . . . . . . . . . . . . . . . . . . . Slashing 55 | . . . . 11 . . . . 5 13 4 11 9 1 1 . . . . . . . . . . . . . . . . . . . . . . . . . . . Piercing . | . . . . . . . . . . . . . . . . . . . . . . . . . . . . . . . . . . . . . . . . . . . Sneak Attacks 8 | . . . . 2 . . . . . . . . 5 1 . . . . . . . . . . . . . . . . . . . . . . . . . . . . Combat Hostiles . | . . . . . . . . . . . . . . . . . . . . . . . . . . . . . . . . . . . . . . . . . . . Follow-up Attacks . | . . . . . . . . . . . . . . . . . . . . . . . . . . . . . . . . . . . . . . . . . . . Damage Inflicted 79169 | 51 1192 719 . 711 3155 551 506 1316 580 2012 1950 370 538 768 2311 2048 1541 901 5582 1496 1059 1247 1879 723 386 3546 1078 761 . 5905 393 299 368 1474 3490 5953 788 4553 680 3446 10797 2046 Guns 17164 | 51 243 . . 104 2205 551 506 1159 . . 18 . . . . . . . 804 91 . 143 662 . . . 80 265 . . . . . . 2092 2846 . 2191 435 258 2460 . Cannons 42786 | . 923 268 . . 703 . . 157 544 2012 1353 370 . 18 493 1711 935 458 4198 1405 512 533 1217 61 386 3090 421 496 . 5781 393 299 355 1474 904 2705 788 2335 97 1049 3704 638 Explosions 17734 | . . 451 . 291 223 . . . . . 516 . . 631 1818 337 606 443 580 . 547 571 . 662 . 456 577 . . . . . . . 323 402 . . 137 2139 4616 1408 Melee 973 | . . . . 316 . . . . . . . . 538 119 . . . . . . . . . . . . . . . . . . . . . . . . . . . . Ramming 500 | . 26 . . . 24 . . . 36 . 51 . . . . . . . . . . . . . . . . . . 124 . . 13 . 171 . . 27 11 . 17 . Kinetic 12358 | . 923 145 . 38 778 . . . . . 234 152 . . 233 . . . 2076 177 . 143 24 . . . . . . . . . . . 640 1019 . 1198 . 455 4110 13 Thermal 38987 | 12 243 123 . 66 1985 551 506 1316 544 2012 1103 218 . 148 151 1798 904 458 1774 368 209 865 1683 . 386 3300 501 761 . 5781 393 299 355 1474 1479 850 788 1610 53 556 2739 625 Explosive 8073 | . . 451 . 291 . . . . . . 107 . . . 569 106 164 196 546 . . . . . . . 236 . . . . . . . . 402 . . . 2139 1722 1144 Electromagnetic 18278 | 39 . . . . 368 . . . . . 455 . . 501 1358 144 473 247 1186 951 850 239 172 723 . 246 341 . . . . . . . 1200 3682 . 1718 616 296 2209 264 Impact . | . . . . . . . . . . . . . . . . . . . . . . . . . . . . . . . . . . . . . . . . . . . Slashing 973 | . . . . 316 . . . . . . . . 538 119 . . . . . . . . . . . . . . . . . . . . . . . . . . . . Piercing . | . . . . . . . . . . . . . . . . . . . . . . . . . . . . . . . . . . . . . . . . . . . Highest Corruption 21 | . . . . . . . . . . 15 17 17 . . . 1 2 2 2 . . . . . . 1 2 4 4 8 8 . . . . 2 3 4 4 4 3 21 Average Corruption 4 | . . . . . . . . . . 13 15 10 . . . 1 1 2 2 . . . . . . 1 1 3 4 5 4 . . . . 1 2 2 4 4 2 4 Corruption Purged 25 | . . . . . . . . . . . . 17 . . . . . . . . . . . . . . . . . . 8 . . . . . . . . . . . Effects 441 | . . . . . . . . . . 66 73 87 . . . 1 31 15 . . . . . . . 2 9 4 27 37 5 . . . . 12 11 18 10 6 15 12 Message Errors 103 | . . . . . . . . . . 9 13 18 . . . . 9 6 . . . . . . . 2 5 2 8 11 . . . . . 4 2 4 1 1 5 3 Matter Fused 68 | . . . . . . . . . . 11 13 15 . . . . . . . . . . . . . . . 1 7 4 1 . . . . . 6 3 3 1 . 3 Heat Flow Errors 46 | . . . . . . . . . . 3 6 8 . . . . 5 3 . . . . . . . . 1 . 5 3 1 . . . . 1 . 2 4 1 2 1 Energy Discharges 33 | . . . . . . . . . . 3 5 6 . . . 1 6 1 . . . . . . . . 1 . 4 2 1 . . . . 1 . 1 . . . 1 Parts Rejected 2 | . . . . . . . . . . . . . . . . . . . . . . . . . . . . . . 1 . . . . . . . . . . . 1 Data Loss (minor) 62 | . . . . . . . . . . 2 8 13 . . . . 11 4 . . . . . . . . 2 1 3 3 2 . . . . 3 2 4 . 1 2 1 Data Loss (major) 7 | . . . . . . . . . . 2 2 2 . . . . . . . . . . . . . . . . . . . . . . . . . . . . . 1 Misfires 6 | . . . . . . . . . . 1 2 3 . . . . . . . . . . . . . . . . . . . . . . . . . . . . . . Alerts 2 | . . . . . . . . . . 2 . . . . . . . . . . . . . . . . . . . . . . . . . . . . . . . . Misdirections 32 | . . . . . . . . . . 1 12 19 . . . . . . . . . . . . . . . . . . . . . . . . . . . . . . Targeting Errors 62 | . . . . . . . . . . 27 8 2 . . . . . 1 . . . . . . . . . . . 9 . . . . . 3 1 4 1 1 4 1 Weapon Failures 18 | . . . . . . . . . . 5 4 1 . . . . . . . . . . . . . . . . . 4 . . . . . . . . 1 1 2 . Overload Shots 2 | . . . . . . . . . . . . 2 . . . . . . . . . . . . . . . . . . . . . . . . . . . . . . Overflow Damage 2697 | . 7 13 . 45 . . . . . . 48 18 205 . 7 140 61 3 264 62 10 114 9 . . 132 43 49 . 575 71 31 16 67 56 39 . 93 . 64 442 13 Projectiles 1950 | . 7 13 . . . . . . . . 22 18 . . . 49 61 . 264 62 . 40 9 . . 132 42 49 . 560 71 31 16 67 27 32 . 88 . . 290 . Explosions 426 | . . . . 4 . . . . . . . . . . 7 91 . 3 . . 10 74 . . . . 1 . . . . . . . . 7 . . . 64 152 13 Melee 321 | . . . . 41 . . . . . . 26 . 205 . . . . . . . . . . . . . . . . 15 . . . . 29 . . 5 . . . . Knockbacks 98 | . 8 6 . . 10 . . . . . 2 . . . 1 . . . 47 1 . . . . . . . . . . . . . . 2 . . 1 1 . 19 . Impact 5 | . . . . . . . . . . . 1 . . . . . . . . . . . . . . . . . . . . . . . 2 . . 1 1 . . . Kinetic 87 | . 8 5 . . 9 . . . . . . . . . 1 . . . 47 1 . . . . . . . . . . . . . . . . . . . . 16 . Secondary 6 | . . 1 . . 1 . . . . . 1 . . . . . . . . . . . . . . . . . . . . . . . . . . . . . 3 . Self-Inflicted Damage 1169 | . . 38 . 87 23 . . . 18 . 42 . . . 172 68 68 . 40 . 80 . . . . 47 . . . . . . . . 106 . . . . 57 323 . Shots 50 | . . 3 . 4 1 . . . . . 1 . . . 8 3 4 . 2 . 5 . . . . 3 . . . . . . . . 2 . . . . 2 12 . Rammed 26 | . 3 . . . 3 . . . 2 . 1 . . . . . . . . . . . . . . . . . . 6 . . 1 . 4 . . 2 . . 4 . Targets Rammed 28 | . 3 . . . 3 . . . 2 . 1 . . . . . . . . . . . . . . . . . . 7 . . 1 . 4 . . 2 1 . 4 . Kicked . | . . . . . . . . . . . . . . . . . . . . . . . . . . . . . . . . . . . . . . . . . . . Crushed 2 | . . . . . . . . . . . . . . . . . . . . . . . . . . . . . . 1 . . . . . . . . 1 . . . Highest Temperature 552 | 60 312 111 . 156 274 234 126 267 2 315 160 231 . 185 347 156 264 285 375 370 145 72 116 . . 132 219 45 220 229 259 . . . 269 445 198 344 309 304 552 46 Average Temperature 88 | 34 58 53 . 57 38 75 53 83 1 108 41 92 . 100 137 34 62 73 108 92 62 28 35 . . 28 53 15 102 47 133 . . . 86 132 96 118 122 135 104 9 Received Heat Transfer 4619 | . 132 . . 57 729 75 45 288 39 . 153 . . 108 330 99 195 93 164 18 102 12 87 34 . 36 153 . . 162 . . 9 . 78 222 . 92 33 386 292 396 Effects 30 | . . . . . . . . . . 1 . . . . 3 . . . 13 1 . . . . . . . . . . . . . . 1 7 . . 1 1 2 . Shutdowns 4 | . . . . . . . . . . . . . . . . . . . 2 . . . . . . . . . . . . . . . . 1 . . . . 1 . Energy Bleed 12 | . . . . . . . . . . 1 . . . . . . . . 3 . . . . . . . . . . . . . . . 1 6 . . 1 . . . Interference 10 | . . . . . . . . . . . . . . . 3 . . . 7 . . . . . . . . . . . . . . . . . . . . . . . Short Circuit 2 | . . . . . . . . . . . . . . . . . . . . 1 . . . . . . . . . . . . . . . . . . . . 1 . Damage (minor) 2 | . . . . . . . . . . . . . . . . . . . 1 . . . . . . . . . . . . . . . . . . . . 1 . . Siege Activations 31 | . . . . . . . . . . . 1 . . . . 1 . . 1 . . . . . . 2 . . . 2 2 1 . 2 1 8 1 2 . 1 5 1 Total Turns 566 | . . . . . . . . . . . 14 . . . . 10 . . 21 . . . . . . 24 . . . 32 34 6 . 19 32 172 53 52 . 33 56 8 Longest Duration 54 | . . . . . . . . . . . 14 . . . . 10 . . 21 . . . . . . 13 . . . 23 21 6 . 14 32 54 53 37 . 33 18 8 Robots Corrupted 78 | . . . . . . . . . . . 2 . . 4 4 . 2 . 3 8 . 1 . 6 . 1 2 . . . . . . . 5 18 . 9 2 1 8 2 Combat Hostiles 76 | . . . . . . . . . . . 2 . . 4 3 . 2 . 3 8 . . . 6 . 1 2 . . . . . . . 5 18 . 9 2 1 8 2 Parts Fried 174 | . . . . . . . . . . . 2 . . 10 17 . 4 . 12 . 13 6 . 3 . 2 2 . . . . . . . 11 36 . 13 9 1 29 4 Impact Corruptions 8 | . . . . . . . . . . . 1 . . . . . . . . . . . . . . . . . . 1 . . . . 3 . . 1 . . 2 . Robots Melted 2 | . . . . . . . . . . . . 1 . . . . . . . . . . . . . . . . . 1 . . . . . . . . . . . . Combat Hostiles 2 | . . . . . . . . . . . . 1 . . . . . . . . . . . . . . . . . 1 . . . . . . . . . . . . Parts Melted 62 | . 3 . . . 6 1 . 6 . . 6 . . . . 6 2 2 1 2 1 . 6 . . 5 3 . . 1 . . . . 3 4 . 2 . . 2 . Heat Transferred 42017 | 37 703 259 . 148 4223 997 999 2627 888 3626 2006 385 . 200 261 2372 1250 600 2372 550 200 800 2175 . 300 2700 475 550 . 2550 200 150 175 750 1309 629 833 1110 50 407 1969 182 Parts Sabotaged 2 | . . . . . . . . . . . . . . . . . . . . . . . . . . . . . . . . . . . . 2 . . . . . . Parts Stolen . | . . . . . . . . . . . . . . . . . . . . . . . . . . . . . . . . . . . . . . . . . . . Parts Stripped . | . . . . . . . . . . . . . . . . . . . . . . . . . . . . . . . . . . . . . . . . . . . Power Chain Reactions 24 | . . . . . 3 . . . . . 2 . . 2 . . . . 1 . 1 . . . . 2 . . . . . . . . 2 . . . 1 . 8 2 Missiles Intercepted . | . . . . . . . . . . . . . . . . . . . . . . . . . . . . . . . . . . . . . . . . . . . Alert | -11 -10 -10 -10 -9 -8 -8 -8 -8 -7 -7 -7 -7 -7 -7 -6 -6 -6 -6 -6 -6 -5 -5 -5 -5 -5 -5 -5 -4 -4 -4 -4 -4 -4 -3 -3 -3 -3 -2 -2 -2 -1 -1 ------- Run | Scr Mat Min Exi Min Mat Gar Mat Gar Fac Was Fac Low Low Dat Pro Fac Low Low Zio Dee Pro Fac Ext Cet Arc Hub Gar Fac Was Fac Upp Upp War Pro Res Arm Lab Res Tes Gar Acc Com Peak Influence 1565 | 5 333 90 . 165 427 572 278 628 364 119 228 . . . . 266 . . . . . 441 356 548 181 1267 1081 612 163 713 . . . . 364 1032 . 605 478 561 1565 615 Average Influence 333 | 1 174 26 . 62 246 434 193 404 289 49 90 . . . . 76 . . . . . 105 124 142 166 718 881 538 55 371 . . . . 182 660 . 391 296 470 866 509 Maximum Alert Level 4 | . 1 . . . 2 2 1 2 1 . 1 . . . . 1 . . . . . 2 1 2 . 4 3 2 . 3 . . . . 1 3 . 2 2 2 4 2 Low Security (%) 44 | 100 70 100 . 100 24 . 53 12 10 100 87 . . . . 91 . . . . . 80 70 87 100 23 . . 100 23 . . . . 68 . . 8 15 . . . Level 1 24 | . 29 . . . 73 32 46 37 89 . 12 . . . . 8 . . . . . 10 29 10 . 1 . . . 26 . . . . 31 11 . 45 65 21 26 . Level 2 18 | . . . . . 1 67 . 49 . . . . . . . . . . . . . 8 . 1 . 7 8 100 . 45 . . . . . 39 . 46 18 78 13 100 Level 3 10 | . . . . . . . . . . . . . . . . . . . . . . . . . . 52 91 . . 4 . . . . . 48 . . . . 28 . Level 4 2 | . . . . . . . . . . . . . . . . . . . . . . . . . . 15 . . . . . . . . . . . . . . 31 . Level 5 . | . . . . . . . . . . . . . . . . . . . . . . . . . . . . . . . . . . . . . . . . . . . High Security . | . . . . . . . . . . . . . . . . . . . . . . . . . . . . . . . . . . . . . . . . . . . Max Security . | . . . . . . . . . . . . . . . . . . . . . . . . . . . . . . . . . . . . . . . . . . . Squads Dispatched 86 | . 5 . . . 6 . 1 . 2 . 5 . . . . 8 . . . . . 1 2 . . 13 . 1 . 6 . . . . 4 8 . 7 3 . 11 3 Investigation 13 | . 4 . . . 2 . . . . . . . . . . 2 . . . . . . 1 . . 3 . . . 1 . . . . . . . . . . . . Extermination 17 | . . . . . . . . . 1 . 2 . . . . 1 . . . . . . . . . 2 . 1 . 2 . . . . . 2 . 2 1 . 2 1 Reinforcement 25 | . 1 . . . 1 . . . 1 . 3 . . . . 2 . . . . . 1 1 . . 3 . . . . . . . . 4 1 . 1 2 . 4 . Assault 9 | . . . . . . . . . . . . . . . . . . . . . . . . . . . . . . 1 . . . . . 2 . 3 . . 1 2 Garrison 8 | . . . . . 3 . 1 . . . . . . . . . . . . . . . . . . 3 . . . . . . . . . . . . . . 1 . Intercept 14 | . . . . . . . . . . . . . . . . 3 . . . . . . . . . 2 . . . 2 . . . . . 3 . 1 . . 3 . Construction Impeded 8 | . . . . . 1 . . . . . 2 . . . . . . . . . . 1 . . . . . . . . . . . . . . . 1 . . 3 . Haulers Reinforced 6 | . . . . . . . . . 1 . 1 . . . . . . . . . . . . . . 1 . . . . . . . . 2 . . . . . 1 . Stealth | -11 -10 -10 -10 -9 -8 -8 -8 -8 -7 -7 -7 -7 -7 -7 -6 -6 -6 -6 -6 -6 -5 -5 -5 -5 -5 -5 -5 -4 -4 -4 -4 -4 -4 -3 -3 -3 -3 -2 -2 -2 -1 -1 --------- Run | Scr Mat Min Exi Min Mat Gar Mat Gar Fac Was Fac Low Low Dat Pro Fac Low Low Zio Dee Pro Fac Ext Cet Arc Hub Gar Fac Was Fac Upp Upp War Pro Res Arm Lab Res Tes Gar Acc Com Distress Signals 35 | . 2 . . . 2 . 1 . . . . . . . . 1 . . . . . . 4 2 . 3 . 1 . 2 . . . . 7 1 . 2 1 . 6 . Communications Jammed . | . . . . . . . . . . . . . . . . . . . . . . . . . . . . . . . . . . . . . . . . . . . Distress Signals . | . . . . . . . . . . . . . . . . . . . . . . . . . . . . . . . . . . . . . . . . . . . Times Spotted 754 | . 26 20 . 8 45 8 6 16 6 6 13 1 . 4 22 21 12 9 59 10 9 7 25 10 2 26 12 6 6 35 6 1 12 17 25 68 3 56 14 10 70 42 Peak Tracking Total 22 | . 3 19 . 4 8 3 4 4 2 3 4 1 . 4 5 4 4 3 7 3 4 5 4 5 1 4 5 3 2 7 3 1 12 6 9 6 3 11 5 12 11 22 Tactical Retreats 40 | . 2 . . . 1 . . . . . 1 . . . 2 . 2 . 5 3 1 2 . . . 1 . 2 . 2 1 . . 1 1 5 . 2 2 . 2 2 Traps | -11 -10 -10 -10 -9 -8 -8 -8 -8 -7 -7 -7 -7 -7 -7 -6 -6 -6 -6 -6 -6 -5 -5 -5 -5 -5 -5 -5 -4 -4 -4 -4 -4 -4 -3 -3 -3 -3 -2 -2 -2 -1 -1 ------- Run | Scr Mat Min Exi Min Mat Gar Mat Gar Fac Was Fac Low Low Dat Pro Fac Low Low Zio Dee Pro Fac Ext Cet Arc Hub Gar Fac Was Fac Upp Upp War Pro Res Arm Lab Res Tes Gar Acc Com Traps Triggered 13 | . 2 . . . 2 2 . . 1 . . . . . . 1 . . . . . . 3 . . . . 1 . . . . . . 1 . . . . . . . Indirectly 2 | . . . . . 2 . . . . . . . . . . . . . . . . . . . . . . . . . . . . . . . . . . . . . Trap Hack Attempts . | . . . . . . . . . . . . . . . . . . . . . . . . . . . . . . . . . . . . . . . . . . . Triggered . | . . . . . . . . . . . . . . . . . . . . . . . . . . . . . . . . . . . . . . . . . . . Disarmed 6 | . . . . . . . . . . . . . . . . . . . . . . . . . . . . . . 6 . . . . . . . . . . . . Reprogrammed . | . . . . . . . . . . . . . . . . . . . . . . . . . . . . . . . . . . . . . . . . . . . Reused 1 | . . . . . 1 . . . . . . . . . . . . . . . . . . . . . . . . . . . . . . . . . . . . . Traps Extracted . | . . . . . . . . . . . . . . . . . . . . . . . . . . . . . . . . . . . . . . . . . . . Installed 3 | . . . . . 3 . . . . . . . . . . . . . . . . . . . . . . . . . . . . . . . . . . . . . Triggered 6 | . . . . . 1 . . . . . . . . . . . 5 . . . . . . . . . . . . . . . . . . . . . . . . . Machines | -11 -10 -10 -10 -9 -8 -8 -8 -8 -7 -7 -7 -7 -7 -7 -6 -6 -6 -6 -6 -6 -5 -5 -5 -5 -5 -5 -5 -4 -4 -4 -4 -4 -4 -3 -3 -3 -3 -2 -2 -2 -1 -1 ---------- Run | Scr Mat Min Exi Min Mat Gar Mat Gar Fac Was Fac Low Low Dat Pro Fac Low Low Zio Dee Pro Fac Ext Cet Arc Hub Gar Fac Was Fac Upp Upp War Pro Res Arm Lab Res Tes Gar Acc Com Machines Disabled 85 | . . . . . . 1 . 3 . . 2 . . . . 9 . . 3 1 . 9 10 5 1 6 6 . . 4 1 . . . . 5 5 4 3 1 6 . Max in Single Turn 4 | . . . . . . 1 . 2 . . 2 . . . . 4 . . 1 1 . 4 1 1 . 1 2 . . . 1 . . . . 1 1 1 2 1 2 . Garrison Access 5 | . . . . . . . . . . . 2 . . . . . . . . . . . . . . . . . . . . . . . . . . 1 . . 2 . Garrison Relay 3 | . . . . . . 1 . 1 . . . . . . . . . . . . . . . . . . 1 . . . . . . . . . . . . . . . Phase Generator 2 | . . . . . . . . 1 . . . . . . . . . . . . . . . . . . 1 . . . . . . . . . . . . . . . Network Hub 2 | . . . . . . . . . . . . . . . . . . . . . . . . . . 2 . . . . . . . . . . . . . . . . Machines Sabotaged 1 | . . . . . . . . . . . . . . . . . . . . . . . . . . 1 . . . . . . . . . . . . . . . . Garrisons Compromised . | . . . . . . . . . . . . . . . . . . . . . . . . . . . . . . . . . . . . . . . . . . . Overloaded Fab Kills . | . . . . . . . . . . . . . . . . . . . . . . . . . . . . . . . . . . . . . . . . . . . Fab Network Shutdowns . | . . . . . . . . . . . . . . . . . . . . . . . . . . . . . . . . . . . . . . . . . . . Hacking | -11 -10 -10 -10 -9 -8 -8 -8 -8 -7 -7 -7 -7 -7 -7 -6 -6 -6 -6 -6 -6 -5 -5 -5 -5 -5 -5 -5 -4 -4 -4 -4 -4 -4 -3 -3 -3 -3 -2 -2 -2 -1 -1 --------- Run | Scr Mat Min Exi Min Mat Gar Mat Gar Fac Was Fac Low Low Dat Pro Fac Low Low Zio Dee Pro Fac Ext Cet Arc Hub Gar Fac Was Fac Upp Upp War Pro Res Arm Lab Res Tes Gar Acc Com Machines Accessed 105 | . 7 . 4 . 8 . 3 . 5 . 6 . . 4 . 9 1 1 . . . 1 11 3 . 6 . 2 . 5 1 . . . 1 8 1 5 4 . 7 2 Terminals 64 | . 5 . . . 6 . 2 . 4 . 3 . . . . 5 . . . . . 1 11 3 . 5 . . . 3 . . . . 1 3 . 5 2 . 3 2 Fabricators 7 | . . . . . . . . . . . 1 . . . . 1 . . . . . . . . . . . 1 . . . . . . . 3 . . . . 1 . Repair Stations 8 | . . . . . . . . . 1 . . . . . . . . . . . . . . . . . . 1 . 2 . . . . . 2 . . 1 . 1 . Recycling Units 4 | . 2 . . . 1 . . . . . . . . . . 1 . . . . . . . . . . . . . . . . . . . . . . . . . . Scanalyzers . | . . . . . . . . . . . . . . . . . . . . . . . . . . . . . . . . . . . . . . . . . . . Garrison Access 10 | . . . . . 1 . 1 . . . 2 . . . . 2 . . . . . . . . . 1 . . . . . . . . . . . . 1 . 2 . Total Hacks 424 | . 27 . 48 . 26 . 10 . 11 . 10 . . 25 . 25 1 1 . . . 4 28 14 . 18 . 12 . 26 1 . . . 9 32 19 22 13 . 31 11 Successful 282 | . 12 . 48 . 18 . 7 . 6 . 6 . . 25 . 14 1 1 . . . 3 21 8 . 10 . 10 . 16 1 . . . 6 14 19 10 7 . 15 4 Failed 140 | . 15 . . . 7 . 3 . 5 . 4 . . . . 11 . . . . . 1 6 6 . 8 . 2 . 10 . . . . 3 18 . 12 6 . 16 7 Catastrophic 26 | . . . . . 1 . . . 2 . 3 . . . . 2 . . . . . . . . . . . . . 3 . . . . . 7 . 2 . . 4 2 Database Lockouts 2 | . . . . . 1 . . . . . . . . . . . . . . . . . 1 . . . . . . . . . . . . . . . . . . . Manual 198 | . 17 . . . 14 . 8 . 5 . 6 . . . . 16 . . 4 . . 4 19 14 . 10 . 5 . 7 . . . . 7 11 . 15 5 . 21 10 Terminals 240 | . 23 . . . 23 . 8 . 8 . 5 . . . . 15 . . . . . 4 28 14 . 16 . . . 14 . . . . 9 11 . 22 8 . 21 11 Fabricators 28 | . . . . . . . . . . . 2 . . . . 2 . . . . . . . . . . . 7 . . . . . . . 13 . . . . 4 . Repair Stations 36 | . . . . . . . . . 3 . . . . . . . . . . . . . . . . . . 5 . 12 . . . . . 8 . . 4 . 4 . Recycling Units 8 | . 4 . . . 1 . . . . . . . . . . 3 . . . . . . . . . . . . . . . . . . . . . . . . . . Scanalyzers . | . . . . . . . . . . . . . . . . . . . . . . . . . . . . . . . . . . . . . . . . . . . Garrison Access 17 | . . . . . 2 . 2 . . . 3 . . . . 5 . . . . . . . . . 2 . . . . . . . . . . . . 1 . 2 . Terminal Hacks 166 | . 6 . 48 . 11 . 3 . 1 . . . . 25 . 3 1 1 . . . . 12 4 . 4 . . . 5 1 . . . 4 2 19 7 2 . 6 1 Record 80 | . . . 48 . . . . . . . . . . 11 . . . . . . . . . 1 . . . . . . 1 . . . . . 19 . . . . . Part Schematic 8 | . . . . . . . . . . . . . . 6 . . . . . . . . 1 . . . . . . . . . . . 1 . . . . . . . Robot Schematic 5 | . . . . . . . . . . . . . . 5 . . . . . . . . . . . . . . . . . . . . . . . . . . . . Robot Analysis 6 | . 2 . . . 3 . 1 . . . . . . . . . . . . . . . . . . . . . . . . . . . . . . . . . . . Prototype ID Bank 5 | . . . . . 1 . . . . . . . . 3 . . . . . . . . . . . . . . . 1 . . . . . . . . . . . . Open Door 4 | . . . . . . . . . . . . . . . . . 1 1 . . . . 2 . . . . . . . . . . . . . . . . . . . Branch Access Points 6 | . . . . . 1 . . . . . . . . . . 1 . . . . . . 1 . . . . . . 1 . . . . 1 . . 1 . . . . Emergency Access Points 2 | . . . . . . . . . . . . . . . . . . . . . . . . . . . . . . . . . . . 1 . . 1 . . . . Recycling Unit Index 1 | . 1 . . . . . . . . . . . . . . . . . . . . . . . . . . . . . . . . . . . . . . . . . Alert Level 3 | . 1 . . . 2 . . . . . . . . . . . . . . . . . . . . . . . . . . . . . . . . . . . . . Unreport Threat 22 | . . . . . 1 . 1 . . . . . . . . . . . . . . . 2 3 . 3 . . . . . . . . 1 2 . 3 . . 6 . Locate Traps 11 | . . . . . 2 . . . 1 . . . . . . 1 . . . . . . 3 . . . . . . 2 . . . . . . . 2 . . . . Disarm Traps 1 | . . . . . . . . . . . . . . . . . . . . . . . . . . . . . . 1 . . . . . . . . . . . . Patrol Status 4 | . 2 . . . . . . . . . . . . . . . . . . . . . 1 . . . . . . . . . . . . . . . . . . 1 Recall Investigation 1 | . . . . . . . . . . . . . . . . . . . . . . . 1 . . . . . . . . . . . . . . . . . . . Recall Extermination 1 | . . . . . . . . . . . . . . . . . . . . . . . . . . 1 . . . . . . . . . . . . . . . . Recall Reinforcements 2 | . . . . . . . . . . . . . . . . . . . . . . . 1 . . . . . . . . . . . . . . . 1 . . . Hauler Manifests 2 | . . . . . 1 . . . . . . . . . . . . . . . . . . . . . . . . . . . . . . . . . 1 . . . Registered Prototypes 1 | . . . . . . . . . . . . . . . . 1 . . . . . . . . . . . . . . . . . . . . . . . . . . Zone Layout 1 | . . . . . . . 1 . . . . . . . . . . . . . . . . . . . . . . . . . . . . . . . . . . . Fabricator Hacks 10 | . . . . . . . . . . . . . . . . 1 . . . . . . . . . . . 2 . . . . . . . 5 . . . . 2 . Load Schematic 6 | . . . . . . . . . . . . . . . . 1 . . . . . . . . . . . 1 . . . . . . . 3 . . . . 1 . Build 4 | . . . . . . . . . . . . . . . . . . . . . . . . . . . . 1 . . . . . . . 2 . . . . 1 . Repair Station Hacks 22 | . . . . . . . . . 2 . . . . . . . . . . . . . . . . . . 4 . 9 . . . . . 4 . . 1 . 2 . Scan Component 12 | . . . . . . . . . 1 . . . . . . . . . . . . . . . . . . 2 . 5 . . . . . 2 . . 1 . 1 . Repair 10 | . . . . . . . . . 1 . . . . . . . . . . . . . . . . . . 2 . 4 . . . . . 2 . . . . 1 . Recycling Unit Hacks 1 | . . . . . . . . . . . . . . . . 1 . . . . . . . . . . . . . . . . . . . . . . . . . . Retrieve Components 1 | . . . . . . . . . . . . . . . . 1 . . . . . . . . . . . . . . . . . . . . . . . . . . Scanalyzer . | . . . . . . . . . . . . . . . . . . . . . . . . . . . . . . . . . . . . . . . . . . . Garrison Access Hacks 12 | . . . . . 1 . 2 . . . 3 . . . . 2 . . . . . . . . . 1 . . . . . . . . . . . . 1 . 2 . Unlock Access 4 | . . . . . 1 . 1 . . . . . . . . . . . . . . . . . . 1 . . . . . . . . . . . . 1 . . . Seal Access 4 | . . . . . . . . . . . 2 . . . . . . . . . . . . . . . . . . . . . . . . . . . . . 2 . Coupler Status 4 | . . . . . . . 1 . . . 1 . . . . 2 . . . . . . . . . . . . . . . . . . . . . . . . . . Unauthorized Hacks 179 | . 15 . . . 13 . 5 . 8 . 8 . . . . 20 . . . . . 7 18 8 . 12 . 9 . 5 . . . . 4 14 . 8 8 . 7 10 Terminals 59 | . 4 . . . 5 . 2 . 3 . 2 . . . . 6 . . . . . 3 9 4 . 4 . . . 2 . . . . 2 1 . 3 3 . 3 3 Track 15 | . 2 . . . 3 . 1 . 1 . . . . . . 2 . . . . . 1 1 1 . . . . . . . . . . . . . . 1 . . 2 Assimilate 1 | . . . . . . . . . . . . . . . . . . . . . . . . . . . . . . . . . . . . . . 1 . . . . Botnet 33 | . 2 . . . 2 . 1 . 2 . 2 . . . . 4 . . . . . . 5 3 . 1 . . . 2 . . . . 1 1 . 2 1 . 3 1 Detonate 1 | . . . . . . . . . . . . . . . . . . . . . . 1 . . . . . . . . . . . . . . . . . . . . Disrupt 3 | . . . . . . . . . . . . . . . . . . . . . . 1 1 . . . . . . . . . . . . . . . 1 . . . Operators 3 | . . . . . . . . . . . . . . . . . . . . . . . 2 . . . . . . . . . . . 1 . . . . . . . Sabotage 3 | . . . . . . . . . . . . . . . . . . . . . . . . . . 3 . . . . . . . . . . . . . . . . Fabricators 7 | . . . . . . . . . . . 1 . . . . . . . . . . . . . . . . 4 . . . . . . . 2 . . . . . . Report 1 | . . . . . . . . . . . . . . . . . . . . . . . . . . . . 1 . . . . . . . . . . . . . . Prioritize 1 | . . . . . . . . . . . . . . . . . . . . . . . . . . . . 1 . . . . . . . . . . . . . . Siphon 3 | . . . . . . . . . . . . . . . . . . . . . . . . . . . . 1 . . . . . . . 2 . . . . . . Haulers 2 | . . . . . . . . . . . 1 . . . . . . . . . . . . . . . . 1 . . . . . . . . . . . . . . Repair Stations . | . . . . . . . . . . . . . . . . . . . . . . . . . . . . . . . . . . . . . . . . . . . Recycling Units 3 | . 2 . . . 1 . . . . . . . . . . . . . . . . . . . . . . . . . . . . . . . . . . . . . Tunnel 3 | . 2 . . . 1 . . . . . . . . . . . . . . . . . . . . . . . . . . . . . . . . . . . . . Scanalyzers . | . . . . . . . . . . . . . . . . . . . . . . . . . . . . . . . . . . . . . . . . . . . Garrison Access 2 | . . . . . . . . . . . . . . . . 1 . . . . . . . . . 1 . . . . . . . . . . . . . . . . Reprogram 1 | . . . . . . . . . . . . . . . . . . . . . . . . . . 1 . . . . . . . . . . . . . . . . Eject 1 | . . . . . . . . . . . . . . . . 1 . . . . . . . . . . . . . . . . . . . . . . . . . . Data Cores Recovered 4 | . . . . . . . . . . . . . . . . . . . . . . 1 . . . 1 . . . . . . . . 1 1 . . . . . . Used . | . . . . . . . . . . . . . . . . . . . . . . . . . . . . . . . . . . . . . . . . . . . Hacking Detections 79 | . 6 . . . 7 . 2 . 5 . 5 . . . . 7 . . . . . 1 10 3 . 3 . 1 . 5 . . . . 1 8 . 4 4 . 5 2 Full Trace Events 3 | . 1 . . . . . . . . . . . . . . 1 . . . . . . . . . . . . . 1 . . . . . . . . . . . . Feedback Events . | . . . . . . . . . . . . . . . . . . . . . . . . . . . . . . . . . . . . . . . . . . . Feedback Blocked . | . . . . . . . . . . . . . . . . . . . . . . . . . . . . . . . . . . . . . . . . . . . Robot Schematics Acquired 5 | . . . . . . . . . . . . . . 5 . . . . . . . . . . . . . . . . . . . . . . . . . . . . Robots Built . | . . . . . . . . . . . . . . . . . . . . . . . . . . . . . . . . . . . . . . . . . . . Matter . | . . . . . . . . . . . . . . . . . . . . . . . . . . . . . . . . . . . . . . . . . . . Time . | . . . . . . . . . . . . . . . . . . . . . . . . . . . . . . . . . . . . . . . . . . . Total Robot Build Rating . | . . . . . . . . . . . . . . . . . . . . . . . . . . . . . . . . . . . . . . . . . . . Part Schematics Acquired 8 | . . . . . . . . . . . . . . 6 . . . . . . . . 1 . . . . . . . . . . . 1 . . . . . . . Parts Built 3 | . . . . . . . . . . . . . . . . . . . . . . . . . . . . 1 . . . . . . . 2 . . . . . . Matter 1112 | . . . . . . . . . . . . . . . . . . . . . . . . . . . . 318 . . . . . . . 476 . . . . 318 . Time 337 | . . . . . . . . . . . . . . . . . . . . . . . . . . . . 169 . . . . . . . 112 . . . . 56 . Total Part Build Rating 18 | . . . . . . . . . . . . . . . . . . . . . . . . . . . . 6 . . . . . . . 12 . . . . . . Parts Repaired 10 | . . . . . . . . . 1 . . . . . . . . . . . . . . . . . . 2 . 4 . . . . . 2 . . . . 1 . Time 336 | . . . . . . . . . 38 . . . . . . . . . . . . . . . . . . 100 . 134 . . . . . 56 . . . . 8 . Parts Recycled . | . . . . . . . . . . . . . . . . . . . . . . . . . . . . . . . . . . . . . . . . . . . Recycled Matter . | . . . . . . . . . . . . . . . . . . . . . . . . . . . . . . . . . . . . . . . . . . . Retrieved Matter . | . . . . . . . . . . . . . . . . . . . . . . . . . . . . . . . . . . . . . . . . . . . Retrieved Components 1 | . . . . . . . . . . . . . . . . 1 . . . . . . . . . . . . . . . . . . . . . . . . . . Parts Scanalyzed . | . . . . . . . . . . . . . . . . . . . . . . . . . . . . . . . . . . . . . . . . . . . Part Schematics Acquired . | . . . . . . . . . . . . . . . . . . . . . . . . . . . . . . . . . . . . . . . . . . . Parts Damaged . | . . . . . . . . . . . . . . . . . . . . . . . . . . . . . . . . . . . . . . . . . . . Bothacking | -11 -10 -10 -10 -9 -8 -8 -8 -8 -7 -7 -7 -7 -7 -7 -6 -6 -6 -6 -6 -6 -5 -5 -5 -5 -5 -5 -5 -4 -4 -4 -4 -4 -4 -3 -3 -3 -3 -2 -2 -2 -1 -1 ------------ Run | Scr Mat Min Exi Min Mat Gar Mat Gar Fac Was Fac Low Low Dat Pro Fac Low Low Zio Dee Pro Fac Ext Cet Arc Hub Gar Fac Was Fac Upp Upp War Pro Res Arm Lab Res Tes Gar Acc Com Used RIF Installer 4 | . . . . . . 1 . 1 . . . . . . . . . . . . . . . . . . 1 . . . . . . . . . . . . 1 . . Coupler Efficiency 1 | . . . . . . . . 1 . . . . . . . . . . . . . . . . . . . . . . . . . . . . . . . . . . Alert ID Control 1 | . . . . . . . . . . . . . . . . . . . . . . . . . . . . . . . . . . . . . . . . 1 . . Autooverride 1 | . . . . . . . . . . . . . . . . . . . . . . . . . . . 1 . . . . . . . . . . . . . . . Robots Hacked 11 | . . . . . . . . . 1 5 . . . 1 . . 1 . 1 . . . . . . . . . . . . . . . . . . . 1 . . 1 Non-combat 1 | . . . . . . . . . 1 . . . . . . . . . . . . . . . . . . . . . . . . . . . . . . . . . Combat 10 | . . . . . . . . . . 5 . . . 1 . . 1 . 1 . . . . . . . . . . . . . . . . . . . 1 . . 1 Robot Hacks Applied 11 | . . . . . . . . . 1 5 . . . 1 . . 1 . 1 . . . . . . . . . . . . . . . . . . . 1 . . 1 parse_system 3 | . . . . . . . . . . . . . . 1 . . . . 1 . . . . . . . . . . . . . . . . . . . . . . 1 find_chute 1 | . . . . . . . . . 1 . . . . . . . . . . . . . . . . . . . . . . . . . . . . . . . . . locate_prototypes 1 | . . . . . . . . . . . . . . . . . . . . . . . . . . . . . . . . . . . . . . . 1 . . . ignore_targets 5 | . . . . . . . . . . 5 . . . . . . . . . . . . . . . . . . . . . . . . . . . . . . . . streamctrl_high 1 | . . . . . . . . . . . . . . . . . 1 . . . . . . . . . . . . . . . . . . . . . . . . . Manual 1 | . . . . . . . . . . . . . . . . . . . . . . . . . . . . . . . . . . . . . . . . . . 1 Relay Couplers Released 15 | . . . . . . 3 . 5 . . . . . . . 3 . . . . . . . . . . 3 . . . . . . . . . . 1 . . . . Ejected 3 | . . . . . . . . . . . . . . . . 3 . . . . . . . . . . . . . . . . . . . . . . . . . . Machine Destruction 12 | . . . . . . 3 . 5 . . . . . . . . . . . . . . . . . . 3 . . . . . . . . . . 1 . . . . Attached 4 | . . . . . . . . . . 1 . . . . . . 1 . . . . . . . . . 1 . . . . . . . . . . . 1 . . . Robots Rewired 14 | . . . . . . . . . . . . . . . . . . . . . . . 9 . . . . . . . . . . . 1 4 . . . . . . Allies Hacked 1 | . . . . . . . . . . . . . . . . . . . . . . . . . . 1 . . . . . . . . . . . . . . . . Hacks Repelled . | . . . . . . . . . . . . . . . . . . . . . . . . . . . . . . . . . . . . . . . . . . . Allies | -11 -10 -10 -10 -9 -8 -8 -8 -8 -7 -7 -7 -7 -7 -7 -6 -6 -6 -6 -6 -6 -5 -5 -5 -5 -5 -5 -5 -4 -4 -4 -4 -4 -4 -3 -3 -3 -3 -2 -2 -2 -1 -1 -------- Run | Scr Mat Min Exi Min Mat Gar Mat Gar Fac Was Fac Low Low Dat Pro Fac Low Low Zio Dee Pro Fac Ext Cet Arc Hub Gar Fac Was Fac Upp Upp War Pro Res Arm Lab Res Tes Gar Acc Com Total Allies 50 | . . . . . . . . . . . . . . . . . 1 . . . . . 18 5 . 2 . . 19 . . . . . 1 4 . . . . . . Largest Group 19 | . . . . . . . . . . . . . . . . . 1 1 . . . . 9 11 11 9 . . 19 19 . . . . . 4 . . . . . . Highest-Rated Group 748 | . . . . . . . . . . . . . . . . . 81 81 . . . . 310 748 748 541 . . 714 714 . . . . . 168 . . . . . . Highest-Rated Ally 156 | . . . . . . . . . . . . . . . . . 81 81 . . . . 156 156 156 94 . . 50 50 . . . . . 42 . . . . . . Total Orders 105 | . . . . . . . . . . . . . . . . . . 8 . . . . . . . 2 . . . 4 12 2 . 11 9 50 . 5 2 . . . STAY 1 | . . . . . . . . . . . . . . . . . . . . . . . . . . . . . . . . . . . 1 . . . . . . . GOTO 22 | . . . . . . . . . . . . . . . . . . 4 . . . . . . . 1 . . . . 5 . . 2 2 7 . 1 . . . . FOLLOW 14 | . . . . . . . . . . . . . . . . . . 4 . . . . . . . 1 . . . . 1 . . 1 3 3 . . 1 . . . RETURN 68 | . . . . . . . . . . . . . . . . . . . . . . . . . . . . . . 4 6 2 . 8 3 40 . 4 1 . . . Ally Attacks 805 | . . . . . . . . . . . . . . . . . . 17 . . . . 134 62 34 109 . . . 122 13 8 . 20 34 205 . 34 13 . . . Total Damage 19534 | . . . . . . . . . . . . . . . . . . 932 . . . . 2391 1692 1356 3338 . . . 3939 167 122 . 383 696 3652 . 625 241 . . . Kills 119 | . . . . . . . . . . . . . . . . . . 6 . . . . 15 13 5 28 . . . 15 5 4 . 1 1 19 . 4 3 . . . Allies Corrupted 4 | . . . . . . . . . . . . . . . . . . . . . . . . . . 1 . . . 1 . . . . 1 1 . . . . . . Allies Melted . | . . . . . . . . . . . . . . . . . . . . . . . . . . . . . . . . . . . . . . . . . . . Intel | -11 -10 -10 -10 -9 -8 -8 -8 -8 -7 -7 -7 -7 -7 -7 -6 -6 -6 -6 -6 -6 -5 -5 -5 -5 -5 -5 -5 -4 -4 -4 -4 -4 -4 -3 -3 -3 -3 -2 -2 -2 -1 -1 ------- Run | Scr Mat Min Exi Min Mat Gar Mat Gar Fac Was Fac Low Low Dat Pro Fac Low Low Zio Dee Pro Fac Ext Cet Arc Hub Gar Fac Was Fac Upp Upp War Pro Res Arm Lab Res Tes Gar Acc Com Robot Analysis Total 121 | . 2 . . . 3 . 1 . . . . . . 115 . . . . . . . . . . . . . . . . . . . . . . . . . . . . Derelict Logs Recovered 14 | . . 1 . . . . . . . . . 1 1 . 1 . 1 2 2 . 2 . . . . . . . . . 2 1 . . . . . . . . . . Drone Launches 82 | . . . . . . . . . . . . . . . . . . . . . . . . . . . . . . 6 6 2 . 7 4 52 . 4 1 . . . Drone Recoveries 76 | . . . . . . . . . . . . . . . . . . . . . . . . . . . . . . 5 6 2 . 7 3 50 . 3 . . . . Exploration | -11 -10 -10 -10 -9 -8 -8 -8 -8 -7 -7 -7 -7 -7 -7 -6 -6 -6 -6 -6 -6 -5 -5 -5 -5 -5 -5 -5 -4 -4 -4 -4 -4 -4 -3 -3 -3 -3 -2 -2 -2 -1 -1 ------------- Run | Scr Mat Min Exi Min Mat Gar Mat Gar Fac Was Fac Low Low Dat Pro Fac Low Low Zio Dee Pro Fac Ext Cet Arc Hub Gar Fac Was Fac Upp Upp War Pro Res Arm Lab Res Tes Gar Acc Com Turns Passed 56971 | 80 1559 121 622 715 1389 372 258 1021 877 807 1218 4036 1664 291 1320 930 3963 1554 11242 2266 1019 363 2062 467 410 807 1027 563 1173 1068 1373 1604 396 1731 746 1452 549 899 501 275 1467 714 Spaces Moved 22953 | 37 790 52 411 328 695 227 138 479 510 397 794 2107 1176 159 829 506 1637 1053 1722 957 482 149 860 180 40 319 442 157 291 361 694 815 116 800 269 503 218 253 195 112 447 246 Core 46 | 5 . . . . . . . . . . . . . . . . . . . . . . . . . . . . . . . . . . . . . . . . . 41 Treads 10211 | 32 790 11 . . 11 5 1 418 2 . 1 . . . . . . . 83 957 482 149 860 180 40 319 442 157 291 361 694 815 116 800 269 503 218 253 195 112 439 205 Legs 663 | . . 41 411 211 . . . . . . . . . . . . . . . . . . . . . . . . . . . . . . . . . . . . . . Wheels 12031 | . . . . 115 684 222 137 61 508 397 793 2107 1176 159 829 506 1637 1053 1639 . . . . . . . . . . . . . . . . . . . . . 8 . Hover . | . . . . . . . . . . . . . . . . . . . . . . . . . . . . . . . . . . . . . . . . . . . Flight 2 | . . . . 2 . . . . . . . . . . . . . . . . . . . . . . . . . . . . . . . . . . . . . . Fastest Speed 50 | 50 160 120 120 100 120 120 120 130 116 120 120 120 120 120 120 130 130 130 130 186 189 186 186 185 185 185 185 185 185 185 185 185 205 185 180 180 185 210 210 172 170 50 Average Speed 156 | 150 166 132 148 165 124 122 121 173 126 131 120 120 120 122 139 136 130 130 154 205 189 188 203 190 185 185 185 185 185 186 185 185 205 185 190 185 201 210 210 179 187 171 Slowest Speed 440 | 160 180 180 210 440 260 240 240 260 200 140 200 120 140 130 150 150 130 130 280 220 189 205 230 206 185 185 185 185 185 205 185 205 205 205 205 210 210 210 210 210 205 197 Overloaded Moves . | . . . . . . . . . . . . . . . . . . . . . . . . . . . . . . . . . . . . . . . . . . . Propulsion Burnouts . | . . . . . . . . . . . . . . . . . . . . . . . . . . . . . . . . . . . . . . . . . . . Robots Hopped . | . . . . . . . . . . . . . . . . . . . . . . . . . . . . . . . . . . . . . . . . . . . Cave-ins Triggered 1 | . . . . . . . . . . . . . . . . . . . . . . . . . . . . . . . . . . . . . . . . . 1 . Exploration Rate (%) 55 | 4 87 22 78 30 49 38 16 67 15 100 29 97 99 77 85 19 98 98 90 85 76 6 96 67 66 39 58 6 95 13 90 90 11 93 12 50 98 12 36 39 18 12 Regions Visited 42 Branch Regions 24 Pre-discovered Areas 32 | . 2 . 1 . 1 . . . . . . . . 26 . . 1 . . . . . . . . . . . . . 1 . . . . . . . . . . . Known Exits Taken 24 | . . . . . 1 . 1 . . . 1 1 1 1 1 1 1 1 . . 1 . 1 . . 1 . . . 1 1 1 1 1 1 1 1 1 1 . 1 . Unknown Exits Taken 10 | 1 1 1 1 1 . . . . . . . . . . . . . . 1 1 . 1 . 1 1 . . . . . . . . . . . . . . . . . Scrap Searched 30 | . . . . . . . . . . . . 3 3 . 1 . 3 4 3 . 2 . . . . . . . . . 3 3 . 5 . . . . . . . . Spaces Dug 322 | . . . . 8 . . . . 5 13 4 12 4 . 20 21 42 18 . 9 8 4 1 . . 10 15 . . 6 4 1 2 9 5 32 . 11 3 . 42 13 Terrain Destroyed 1168 | . . 25 . 38 12 . . 75 5 13 49 14 4 12 71 34 52 39 20 18 21 101 5 . . 30 75 7 . 25 8 2 3 15 29 66 4 27 3 71 166 29 Melee 38 | . . . . . . . . . 5 13 4 11 4 . 1 . . . . . . . . . . . . . . . . . . . . . . . . . . . Projectile 354 | . . . . . 1 . . . . . 5 3 . . 1 14 39 23 9 18 15 5 5 . . 25 5 7 . 25 8 2 3 15 16 16 4 27 3 3 44 13 AOE 776 | . . 25 . 38 11 . . 75 . . 40 . . 12 69 20 13 16 11 . 6 96 . . . 5 70 . . . . . . . 13 50 . . . 68 122 16 Actions | -11 -10 -10 -10 -9 -8 -8 -8 -8 -7 -7 -7 -7 -7 -7 -6 -6 -6 -6 -6 -6 -5 -5 -5 -5 -5 -5 -5 -4 -4 -4 -4 -4 -4 -3 -3 -3 -3 -2 -2 -2 -1 -1 --------- Run | Scr Mat Min Exi Min Mat Gar Mat Gar Fac Was Fac Low Low Dat Pro Fac Low Low Zio Dee Pro Fac Ext Cet Arc Hub Gar Fac Was Fac Upp Upp War Pro Res Arm Lab Res Tes Gar Acc Com Total 40765 | 52 933 84 422 459 986 279 198 569 695 540 952 3565 1415 241 939 673 3395 1191 10010 1143 545 190 1079 288 367 433 617 399 883 620 769 908 264 1009 407 844 282 465 251 154 827 423 Wait 14084 | . 48 . . 76 54 10 18 25 99 3 44 1402 218 44 14 58 1676 81 8028 64 9 3 78 52 321 33 123 219 533 107 44 41 143 120 7 109 5 57 13 4 83 18 Move 22917 | 36 789 51 410 327 695 226 138 478 510 396 793 2106 1175 158 828 505 1636 1052 1721 956 481 148 859 179 39 318 441 157 290 360 693 814 116 799 268 502 217 252 195 111 446 246 Hop . | . . . . . . . . . . . . . . . . . . . . . . . . . . . . . . . . . . . . . . . . . . . Pick Up 465 | 6 18 1 7 17 40 3 4 1 16 6 10 3 1 9 27 17 6 7 17 5 5 4 10 6 . 3 5 3 10 21 7 10 . 19 20 26 6 19 6 2 49 13 Fast Attach 187 | 7 4 . . 6 14 . 6 . 4 6 6 1 5 . 6 6 3 2 13 4 2 1 9 9 . 1 4 1 5 4 . 7 . 4 7 8 7 1 1 . 16 7 Attach 312 | . 1 14 3 1 19 1 . . 7 4 10 1 . 4 8 13 3 5 10 4 4 4 2 1 . 1 4 2 5 12 6 10 . 19 13 27 4 17 4 11 38 20 Detach 93 | . 1 3 . 1 3 . 1 . 2 4 2 . . 1 1 4 . 1 3 . . 1 . 4 . . 2 . 4 3 . 3 . 1 3 13 1 2 . 2 14 13 Swap 406 | . 5 1 1 3 2 . 2 10 19 14 14 17 1 6 19 7 14 11 36 11 17 3 22 6 3 17 10 1 1 13 2 . . . 27 34 3 16 9 5 17 7 Drop 434 | . 12 1 1 5 28 3 12 4 11 17 14 5 6 8 9 17 6 5 21 8 3 3 17 15 . 6 7 1 11 21 7 17 . 22 18 20 12 19 4 1 18 19 Fire 1758 | 3 52 13 . 12 125 24 17 51 20 77 54 19 . 10 26 46 51 27 161 91 24 23 74 16 4 54 21 15 24 72 10 5 5 25 40 104 27 79 17 18 142 80 Melee 55 | . . . . 11 . . . . 5 13 4 11 9 1 1 . . . . . . . . . . . . . . . . . . . . . . . . . . . Ram 2 | . . . . . . . . . 1 . 1 . . . . . . . . . . . . . . . . . . . . . . . . . . . . . . . Kick . | . . . . . . . . . . . . . . . . . . . . . . . . . . . . . . . . . . . . . . . . . . . Crush 25 | . 3 . . . 3 . . . 1 . . . . . . . . . . . . . . . . . . . . 7 . . . . 4 . . 2 1 . 4 . Escape Stasis 20 | . . . . . . 12 . . . . . . . . . . . . . . . . 8 . . . . . . . . . . . . . . . . . . . Rewire . | . . . . . . . . . . . . . . . . . . . . . . . . . . . . . . . . . . . . . . . . . . . Trap 3 | . . . . . 3 . . . . . . . . . . . . . . . . . . . . . . . . . . . . . . . . . . . . . Miscellaneous 4 | . . . . . . . . . . . . . . . . . . . . . . . . . . . . . . . . 1 . . . 1 . 1 1 . . . Route ------- -11/Scrapyard -10/Materials (discovered 4 exits: [*Mat x3] / [*Min]) -10/Mines -10/Exiles (discovered 2 exits: [*Min x2]) -9/Mines -8/Materials (discovered 3 exits: *Fac x2 / Gar) -8/Garrison -8/Materials -8/Garrison (discovered 3 exits: *Fac x3) -7/Factory (discovered 2 exits: *Fac / Sto) -7/Waste -7/Factory (discovered 4 exits: *Fac x2 / *Sto / *Low) -7/Lower Caves -7/Lower Caves (discovered 2 exits: *Fac / *Dat) -7/Data Miner -6/Proximity Caves -6/Factory (discovered 3 exits: *Fac / *Low x2) -6/Lower Caves -6/Lower Caves (discovered 2 exits: *Fac / *Zio) -6/Zion (discovered 2 exits: [*Dee] / [*Pro]) -6/Deep Caves -5/Proximity Caves -5/Factory -5/Extension (discovered 3 exits: *Fac x2 / *Cet) -5/Cetus (discovered 2 exits: *Fac / [*Arc]) -5/Archives (discovered 3 exits: Fac / *Hub x2) -5/Hub_04(d) (discovered 4 exits: *Fac x3 / Gar) -5/Garrison -4/Factory -4/Waste -4/Factory (discovered 4 exits: *Res x2 / *Upp x2) -4/Upper Caves -4/Upper Caves (discovered 2 exits: *Res / *War) -4/Warlord -3/Proximity Caves -3/Research (discovered 3 exits: *Arm / Qua x2) -3/Armory (discovered 2 exits: Res / *Lab) -3/Lab -2/Research (discovered 3 exits: Acc / *Tes x2) -2/Testing -2/Garrison -1/Access -1/Command History --------- Turn | Location | Event 15 | -11/Scrapyard | Discovered new exit (range 14) 81 | -11/Scrapyard | Entered Materials 225 | -10/Materials | Discovered new exit (range 16) 309 | -10/Materials | Build established: Mutant 504 | -10/Materials | Discovered new exit (range 5) 1014 | -10/Materials | Discovered new exit (range 5) 1128 | -10/Materials | Discovered new exit (range 12) 1640 | -10/Materials | Entered Mines 1641 | -10/Mines | Assembled infested the area 1662 | -10/Mines | Met 8R-AWN 1678 | -10/Mines | Destroyed 8 combat bots 1735 | -10/Mines | Lost 13 parts (2p4n1u6w) 1756 | -10/Mines | Discovered new exit (range 5) 1761 | -10/Mines | Entered Exiles 1783 | -10/Exiles | Discovered new exit (range 15) 1811 | -10/Exiles | Welcomed by 8R-AWN 1831 | -10/Exiles | Met EX-HEX 1917 | -10/Exiles | Met EX-DEC 1948 | -10/Exiles | Visited The Gauntlet 2028 | -10/Exiles | Learned location of Zion (-6) 2055 | -10/Exiles | Met EX-BIN 2282 | -10/Exiles | Discovered new exit (range 10) 2383 | -10/Exiles | Entered Mines 2435 | -9/Mines | Core integrity fell below 50% 2540 | -9/Mines | Found a hidden stash of uninstalled traps 2752 | -9/Mines | Core integrity fell below 20% 3062 | -9/Mines | Build established: Scavenger-Mutant 3083 | -9/Mines | Discovered new exit (range 3) 3098 | -9/Mines | Entered Materials 3098 | -8/Materials | Evolved 4 slots: Propulsion x1, Utility x3 3255 | -8/Materials | Central database locked down 3600 | -8/Materials | Discovered new exit (range 13) 3691 | -8/Materials | Garrison activated, responded to threat 3761 | -8/Materials | Lost 7 parts (1p3n1u2w) 4063 | -8/Materials | Lost 3 parts (1n2w) 4286 | -8/Materials | Discovered new exit (range 5) 4487 | -8/Materials | Identified exit to Garrison 4487 | -8/Materials | Entered Garrison 4632 | -8/Garrison | Triggered checkpoint 4745 | -8/Garrison | Discovered new exit (range 14) 4767 | -8/Garrison | Installed Relay Interface Framework 4797 | -8/Garrison | Triggered checkpoint 4815 | -8/Garrison | Garrison Relay disabled 4859 | -8/Garrison | Entered Materials 4915 | -8/Materials | Garrison activated, responded to threat 5117 | -8/Materials | Identified exit to Garrison 5117 | -8/Materials | Entered Garrison 5200 | -8/Garrison | Triggered checkpoint 5344 | -8/Garrison | Triggered checkpoint 5397 | -8/Garrison | Garrison Relay disabled 5403 | -8/Garrison | Build established: Hauler-Mutant 5463 | -8/Garrison | Discovered new exit (range 14) 5626 | -8/Garrison | Triggered checkpoint 5836 | -8/Garrison | Discovered new exit (range 14) 5936 | -8/Garrison | Triggered checkpoint 6009 | -8/Garrison | Phase Generator disabled 6027 | -8/Garrison | Discovered new exit (range 10) 6054 | -8/Garrison | Expanded RIF knowledge: Coupler Efficiency 6100 | -8/Garrison | Triggered checkpoint 6138 | -8/Garrison | Entered Factory 6138 | -7/Factory | Evolved 2 slots: Utility x2 6139 | -7/Factory | Identified exit to Storage 6288 | -7/Factory | Repaired Hvy. Armor Plating 7014 | -7/Factory | Discovered new exit (range 6) 7015 | -7/Factory | Sucked down chute 7015 | -7/Factory | Entered Waste 7030 | -7/Waste | EMP discharged 7048 | -7/Waste | Spotted C-40 Crusher 7070 | -7/Waste | Spotted C-40 Crusher 7130 | -7/Waste | EMP discharged 7130 | -7/Waste | System corruption reached 10% 7140 | -7/Waste | Spotted C-40 Crusher 7162 | -7/Waste | Destroyed C-40 Crusher 7175 | -7/Waste | Spotted C-40 Crusher 7181 | -7/Waste | Spotted C-40 Crusher 7204 | -7/Waste | Destroyed C-40 Crusher 7211 | -7/Waste | Found Damper Plating 7213 | -7/Waste | Spotted C-40 Crusher 7230 | -7/Waste | EMP discharged 7271 | -7/Waste | Destroyed C-40 Crusher 7310 | -7/Waste | Destroyed C-40 Crusher 7330 | -7/Waste | EMP discharged 7333 | -7/Waste | Found Damper Plating 7363 | -7/Waste | Destroyed C-40 Crusher 7374 | -7/Waste | Discovered new exit (range 16) 7430 | -7/Waste | EMP discharged 7490 | -7/Waste | Destroyed C-40 Crusher 7530 | -7/Waste | EMP discharged 7630 | -7/Waste | EMP discharged 7730 | -7/Waste | EMP discharged 7822 | -7/Waste | Entered Factory 8448 | -7/Factory | Discovered exit to Storage (range 10) 8585 | -7/Factory | Discovered new exit (range 16) 8605 | -7/Factory | Identified exit to Factory 8864 | -7/Factory | Discovered new exit (range 7) 8885 | -7/Factory | Identified exit to Lower Caves 8917 | -7/Factory | Discovered exit to Factory (range 12) 9040 | -7/Factory | Entered Lower Caves 9319 | -7/Lower Caves | Build established: Hauler-Skirmisher 9617 | -7/Lower Caves | Encountered a Warlord checkpoint 9866 | -7/Lower Caves | Build established: Hauler-Mutant 10004 | -7/Lower Caves | Learned Factory terminal intel 10089 | -7/Lower Caves | Discovered new exit (range 7) 10095 | -7/Lower Caves | Identified exit to Lower Caves 11488 | -7/Lower Caves | Build established: Hauler-Skirmisher 12433 | -7/Lower Caves | Build established: Hauler-Assassin 12817 | -7/Lower Caves | Found Prototype Special Weapon 13076 | -7/Lower Caves | Entered another Lower Caves area 13335 | -7/Lower Caves | Discovered exit to Factory (range 15) 13442 | -7/Lower Caves | Learned 8 Factory zone layouts 14166 | -7/Lower Caves | Discovered new exit (range 13) 14189 | -7/Lower Caves | Identified exit to Data Miner 14740 | -7/Lower Caves | Entered Data Miner 14740 | -7/Data Miner | Discovered new exit (range 6) 14748 | -7/Data Miner | Identified exit to Proximity Caves 14763 | -7/Data Miner | Met Data Miner 14794 | -7/Data Miner | Learned location of Section 7 (-3) 14794 | -7/Data Miner | Acquired the access code to Warlord's prototype stash 14814 | -7/Data Miner | Received God Mode back door access code from Data Miner 14839 | -7/Data Miner | Destroyed Data Miner 14841 | -7/Data Miner | Interfaced with the Data Conduit 14845 | -7/Data Miner | Found System Mapper 15031 | -7/Data Miner | Entered Proximity Caves 15194 | -6/Proximity Caves | Attracted the attention of an 0b10 checkpoint 15263 | -6/Proximity Caves | Lost 4 parts (1n2u1w) 15537 | -6/Proximity Caves | Build established: Hauler-Mutant 15598 | -6/Proximity Caves | Core integrity fell below 50% 15630 | -6/Proximity Caves | Lost 4 parts (1p1n1u1w) 15886 | -6/Proximity Caves | Discovered exit to Factory (range 12) 15927 | -6/Proximity Caves | Learned Factory stockpile data 16156 | -6/Proximity Caves | Found Imp. Powered Armor 16351 | -6/Proximity Caves | Entered Factory 16351 | -6/Factory | Evolved 2 slots: Power x1, Utility x1 16354 | -6/Factory | Loaded intel: 271 machine locations 16355 | -6/Factory | Loaded intel: 20 terminal locations 16817 | -6/Factory | Intercept squad dispatched 16823 | -6/Factory | Spotted Tracker 16836 | -6/Factory | Destroyed Tracker 16849 | -6/Factory | Found Prototype Energy Gun 16859 | -6/Factory | Spotted Combat Programmer 16868 | -6/Factory | Destroyed Combat Programmer 16883 | -6/Factory | Identified Immobilizer 16886 | -6/Factory | Found Exp. Targeting Computer 16901 | -6/Factory | Discovered new exit (range 6) 16914 | -6/Factory | Identified exit to Factory 17015 | -6/Factory | Identified exit to Lower Caves 17275 | -6/Factory | Intercept squad dispatched 17281 | -6/Factory | Entered Lower Caves 17668 | -6/Lower Caves | Attracted the attention of an 0b10 checkpoint 18441 | -6/Lower Caves | Discovered new exit (range 6) 18446 | -6/Lower Caves | Identified exit to Lower Caves 19347 | -6/Lower Caves | Build established: Hauler-Skirmisher 21023 | -6/Lower Caves | Spotted B-75 Beast 21070 | -6/Lower Caves | Hijacked Beast 5a control node with streamctrl_high 21244 | -6/Lower Caves | Entered another Lower Caves area 21244 | -6/Lower Caves | Accompanied by 1 ally 21335 | -6/Lower Caves | Build established: Hauler-Mutant 21349 | -6/Lower Caves | Spotted B-75 Beast 21387 | -6/Lower Caves | Learned 4 Factory zone layouts 21391 | -6/Lower Caves | Discovered exit to Factory (range 5) 21533 | -6/Lower Caves | Learned Factory emergency access door positions 21575 | -6/Lower Caves | Allies destroyed B-75 Beast 21759 | -6/Lower Caves | Attracted the attention of an 0b10 checkpoint 22359 | -6/Lower Caves | Build established: Hauler-Skirmisher 22619 | -6/Lower Caves | Discovered new exit (range 14) 22633 | -6/Lower Caves | Identified exit to Zion 22798 | -6/Lower Caves | Entered Zion 22840 | -6/Zion | System corruption cleaned by Quarantine Array 22939 | -6/Zion | Acquired unknown access codes intercepted by a Zionite 22973 | -6/Zion | Discovered new exit (range 15) 31079 | -6/Zion | RIF detected upon attempting to enter Zion 31079 | -6/Zion | Attacked by Zionites 31129 | -6/Zion | 1C-UTU came to Zion's defense 31194 | -6/Zion | Destroyed 1C-UTU 31204 | -6/Zion | Lost 5 parts (1p1n2u1w) 31380 | -6/Zion | Build established: Hauler-Mutant 32112 | -6/Zion | Destroyed Imprinter 32121 | -6/Zion | Extracted access codes from Imprinter's data core 33079 | -6/Zion | Opened final containment barrier to the Deep Caves 33110 | -6/Zion | Discovered new exit (range 3) 33110 | -6/Zion | Saw the warning signs outside the Deep Caves entrance 33329 | -6/Zion | Found Prototype Device 33329 | -6/Zion | Identified Phasing AFG 33367 | -6/Zion | Learned Factory terminal intel 33518 | -6/Zion | Learned 4 Factory zone layouts 33712 | -6/Zion | Build established: Scavenger-Mutant 34040 | -6/Zion | Entered Deep Caves 34406 | -6/Deep Caves | Found Prototype Protection 34406 | -6/Deep Caves | Identified Zio. Weapon Casing 34488 | -6/Deep Caves | Z-Facility disabled 34972 | -6/Deep Caves | Found Surveybot 24 Chip 35425 | -6/Deep Caves | Discovered new exit (range 6) 35882 | -6/Deep Caves | Exposed GOLEM chamber 35884 | -6/Deep Caves | Destroyed as-18630 35976 | -6/Deep Caves | Found GOLEM Unit 36026 | -6/Deep Caves | Found GOLEM Unit 36306 | -6/Deep Caves | Entered Proximity Caves 36429 | -5/Proximity Caves | Learned Factory security intel 36790 | -5/Proximity Caves | Discovered exit to Factory (range 24) 36925 | -5/Proximity Caves | Core integrity fell below 50% 36958 | -5/Proximity Caves | Lost 3 parts (1p1u1w) 37271 | -5/Proximity Caves | Build established: Scavenger-Skirmisher 37279 | -5/Proximity Caves | Learned Factory trap positions 37325 | -5/Proximity Caves | Entered Factory 37325 | -5/Factory | Evolved 2 slots: Utility x2 37327 | -5/Factory | Loaded intel: 87 trap records 37330 | -5/Factory | Loaded intel: 278 machine locations 37331 | -5/Factory | Loaded intel: 22 terminal locations 37529 | -5/Factory | Discovered new exit (range 18) 37688 | -5/Factory | Entered Extension 37689 | -5/Extension | Loaded intel: 37 machine locations 37943 | -5/Extension | Rescued a captive Derelict 38041 | -5/Extension | Rescued a captive Derelict 38042 | -5/Extension | Rescued a captive Derelict 38234 | -5/Extension | Identified exit to Cetus 38442 | -5/Extension | Build established: Scavenger-Mutant 38753 | -5/Extension | Spotted B-75 Beast 38766 | -5/Extension | Destroyed B-75 Beast 38783 | -5/Extension | Spotted B-75 Beast 38796 | -5/Extension | Allies destroyed B-75 Beast 38811 | -5/Extension | Discovered new exit (range 5) 38876 | -5/Extension | Rescued a captive Derelict 39073 | -5/Extension | Rescued a captive Derelict 39175 | -5/Extension | Rescued a captive Derelict 39177 | -5/Extension | Rescued a captive Derelict 39236 | -5/Extension | Rescued a captive Derelict 39237 | -5/Extension | Central database locked down 39359 | -5/Extension | Rescued A7 39394 | -5/Extension | Discovered new exit (range 24) 39686 | -5/Extension | Build established: Scavenger-Skirmisher 39750 | -5/Extension | Disrupted transfer network 39750 | -5/Extension | Entered Cetus 39750 | -5/Cetus | Accompanied by 7 allies 39751 | -5/Cetus | Loaded intel: 24 machine locations 39755 | -5/Cetus | Acquired a Cetus Manufacturing Module code from A7 39782 | -5/Cetus | Spotted Cetus Guard 39782 | -5/Cetus | Spotted Cetus Guard 39784 | -5/Cetus | Allies destroyed Cetus Guard 39785 | -5/Cetus | Spotted Cetus Guard 39786 | -5/Cetus | Spotted Cetus Guard 39792 | -5/Cetus | Allies destroyed Cetus Guard 39795 | -5/Cetus | Destroyed Cetus Guard 39805 | -5/Cetus | Destroyed Cetus Guard 39978 | -5/Cetus | Started Cetus Manufacturing Module 39994 | -5/Cetus | Escorted A7 to Cetus Mainframe 40003 | -5/Cetus | Manufactured an Enhanced Grunt 40028 | -5/Cetus | Manufactured an Enhanced Grunt 40033 | -5/Cetus | Found a strange terminal 40053 | -5/Cetus | Manufactured an Enhanced Grunt 40064 | -5/Cetus | Discovered new exit (range 15) 40078 | -5/Cetus | Manufactured an Enhanced Grunt 40100 | -5/Cetus | Spotted Cetus Guard 40100 | -5/Cetus | Spotted Cetus Guard 40103 | -5/Cetus | Manufactured an Enhanced Grunt 40105 | -5/Cetus | Spotted Cetus Guard 40109 | -5/Cetus | Spotted Cetus Guard 40113 | -5/Cetus | Destroyed Cetus Guard 40116 | -5/Cetus | Destroyed Cetus Guard 40120 | -5/Cetus | Destroyed Cetus Guard 40122 | -5/Cetus | Destroyed Cetus Guard 40136 | -5/Cetus | Discovered new exit (range 16) 40147 | -5/Cetus | Met Revision 17 40217 | -5/Cetus | Entered Archives 40217 | -5/Archives | Accompanied by 11 allies 40218 | -5/Archives | Loaded intel: 8 machine locations 40222 | -5/Archives | Received a hacking code to weaken MAIN.C 40265 | -5/Archives | Discovered new exit (range 20) 40266 | -5/Archives | Discovered new exit (range 21) 40273 | -5/Archives | Discovered new exit (range 24) 40551 | -5/Archives | Build established: Commander-Skirmisher 40627 | -5/Archives | Entered Hub_04(d) 40627 | -5/Hub_04(d) | Accompanied by 8 allies 40628 | -5/Hub_04(d) | Loaded intel: 80 machine locations 40644 | -5/Hub_04(d) | Identified exit to Garrison 40681 | -5/Hub_04(d) | Discovered new exit (range 22) 40858 | -5/Hub_04(d) | Garrison activated, responded to threat 40874 | -5/Hub_04(d) | Discovered new exit (range 22) 41013 | -5/Hub_04(d) | Network Hub disabled 41013 | -5/Hub_04(d) | Network Hub disabled 41026 | -5/Hub_04(d) | Discovered new exit (range 24) 41186 | -5/Hub_04(d) | Build established: Hauler-Mutant 41248 | -5/Hub_04(d) | Intercept squad dispatched 41253 | -5/Hub_04(d) | Spotted Tracker 41263 | -5/Hub_04(d) | Destroyed Tracker 41273 | -5/Hub_04(d) | Spotted Combat Programmer 41286 | -5/Hub_04(d) | Destroyed Combat Programmer 41434 | -5/Hub_04(d) | Entered Garrison 41435 | -5/Garrison | Loaded intel: 19 machine locations 41519 | -5/Garrison | Phase Generator disabled 41708 | -5/Garrison | Garrison Relay disabled 41713 | -5/Garrison | Triggered checkpoint 41981 | -5/Garrison | Spotted B-75 Beast 42060 | -5/Garrison | Triggered checkpoint 42066 | -5/Garrison | Triggered checkpoint 42115 | -5/Garrison | Destroyed 10 combat bots 42142 | -5/Garrison | Discovered new exit (range 20) 42189 | -5/Garrison | Expanded RIF knowledge: Autooverride 42421 | -5/Garrison | Build established: Hauler-Skirmisher 42461 | -5/Garrison | Entered Factory 42461 | -4/Factory | Evolved 2 slots: Utility x2 42462 | -4/Factory | Loaded intel: 253 machine locations 42566 | -4/Factory | Repaired Lyr. Heavy Armor Plating 42610 | -4/Factory | Repaired Hvy. Missile Launcher 42966 | -4/Factory | Fabricated Combat Drone Bay (x1) 43024 | -4/Factory | Sucked down chute 43024 | -4/Factory | Entered Waste 43025 | -4/Waste | Identified Molecular Deconstructor 43040 | -4/Waste | Spotted C-40 Crusher 43055 | -4/Waste | Destroyed C-40 Crusher 43063 | -4/Waste | Found Damper Plating 43123 | -4/Waste | Spotted C-40 Crusher 43146 | -4/Waste | Destroyed C-40 Crusher 43167 | -4/Waste | Spotted C-40 Crusher 43167 | -4/Waste | Spotted C-40 Crusher 43170 | -4/Waste | Destroyed C-40 Crusher 43185 | -4/Waste | Destroyed C-40 Crusher 43189 | -4/Waste | Spotted C-40 Crusher 43211 | -4/Waste | Destroyed C-40 Crusher 43241 | -4/Waste | Spotted C-40 Crusher 43244 | -4/Waste | Destroyed C-40 Crusher 43319 | -4/Waste | Warlord forces began an assault 43350 | -4/Waste | Build established: Scavenger-Mutant 43726 | -4/Waste | Found Damper Plating 43760 | -4/Waste | Build established: Hauler-Skirmisher 43815 | -4/Waste | Discovered new exit (range 18) 44189 | -4/Waste | Identified exit to Factory 44197 | -4/Waste | Entered Factory 44197 | -4/Factory | Accompanied by 19 allies 44198 | -4/Factory | Loaded intel: 281 machine locations 44227 | -4/Factory | Identified exit to Upper Caves 44560 | -4/Factory | P-70 Sage assimilated allied P9-PJ8(g) 44631 | -4/Factory | Discovered new exit (range 24) 44655 | -4/Factory | Repaired Cmb. Linear Gravjet 44691 | -4/Factory | Repaired Centrium Heavy Treads 44789 | -4/Factory | Discovered new exit (range 24) 44858 | -4/Factory | Repaired Cmb. Linear Gravjet 44898 | -4/Factory | Repaired Cmb. Linear Gravjet? 44928 | -4/Factory | Intercept squad dispatched 44943 | -4/Factory | Spotted Tracker 44946 | -4/Factory | Destroyed Tracker 45004 | -4/Factory | Spotted Combat Programmer 45020 | -4/Factory | Destroyed Combat Programmer 45101 | -4/Factory | Destroyed 7 combat bots 45197 | -4/Factory | First assault squad dispatched 45265 | -4/Factory | Entered Upper Caves 45626 | -4/Upper Caves | Identified exit to Upper Caves 45630 | -4/Upper Caves | Found Alien Artifact 45896 | -4/Upper Caves | Build established: Hauler-Mutant 46638 | -4/Upper Caves | Entered another Upper Caves area 46650 | -4/Upper Caves | Build established: Hauler-Skirmisher 46678 | -4/Upper Caves | Discovered new exit (range 24) 46715 | -4/Upper Caves | Identified exit to Warlord 46736 | -4/Upper Caves | Identified exit to Research 48242 | -4/Upper Caves | Entered Warlord 48302 | -4/Warlord | Discovered new exit (range 8) 48314 | -4/Warlord | Identified exit to Proximity Caves 48387 | -4/Warlord | Opened side exit 48406 | -4/Warlord | RIF detected upon attempting to enter Warlord's base 48406 | -4/Warlord | Attacked by Warlord forces 48538 | -4/Warlord | Build established: Hauler-Mutant 48638 | -4/Warlord | Warlord's base attacked by MAIN.C 48638 | -4/Warlord | Entered Proximity Caves 49035 | -3/Proximity Caves | Build established: Hauler-Skirmisher 49307 | -3/Proximity Caves | Attracted the attention of an 0b10 checkpoint 49458 | -3/Proximity Caves | Identified Dimensional Node Initializer 49458 | -3/Proximity Caves | Initialized slip node 50191 | -3/Proximity Caves | Discovered exit to Research (range 15) 50369 | -3/Proximity Caves | Entered Research 50369 | -3/Research | Evolved 2 slots: Weapon x2 50370 | -3/Research | Loaded intel: 108 machine locations 50439 | -3/Research | Found Adv. Powered Armor 50443 | -3/Research | Found Adv. Powered Armor 50446 | -3/Research | Found Adv. Powered Armor 50451 | -3/Research | Found Adv. Powered Armor 50454 | -3/Research | Found Adv. Powered Armor 50569 | -3/Research | Revision forces began assault on 0b10 50659 | -3/Research | Lost 4 parts (1u3w) 50661 | -3/Research | Spotted B-86 Titan 50663 | -3/Research | Met up with Revision 17++ 50779 | -3/Research | Found Adv. Micro-nuke Launcher 50784 | -3/Research | Found Adv. Micro-nuke Launcher 50843 | -3/Research | Destroyed Revision 17++ 50865 | -3/Research | Identified exit to Armory 50865 | -3/Research | Identified exit to Quarantine 51069 | -3/Research | Research terminal network offline 51115 | -3/Research | Entered Armory 51116 | -3/Armory | Loaded intel: 72 machine locations 51206 | -3/Armory | Lost 9 parts (2p1n2u4w) 51226 | -3/Armory | Destroyed 16 combat bots 51259 | -3/Armory | Build established: Scavenger-Skirmisher 51365 | -3/Armory | Repaired Adv. Powered Armor 51414 | -3/Armory | First assault squad dispatched 51459 | -3/Armory | Repaired Adv. Powered Armor 51466 | -3/Armory | Fabricated Combat Drone Bay (x1) 51621 | -3/Armory | Fabricated Combat Drone Bay (x1) 52021 | -3/Armory | P-80 Master assimilated allied Champion 8d 52231 | -3/Armory | Discovered new exit (range 24) 52351 | -3/Armory | Found Gamma Bomb Array 52354 | -3/Armory | Found Gamma Bomb Array 52357 | -3/Armory | Found Gamma Bomb Array 52393 | -3/Armory | Discovered new exit (range 24) 52426 | -3/Armory | Intercept squad dispatched 52426 | -3/Armory | Spotted Tracker 52432 | -3/Armory | Allies destroyed Tracker 52460 | -3/Armory | Identified exit to Lab 52469 | -3/Armory | Spotted Combat Programmer 52480 | -3/Armory | Destroyed Combat Programmer 52562 | -3/Armory | Intercept squad dispatched 52567 | -3/Armory | Entered Lab 52567 | -3/Lab | Discovered new exit (range 9) 52582 | -3/Lab | Identified exit to Research 52591 | -3/Lab | Hidden lab's door opened automatically 52591 | -3/Lab | Sensor layout match revealed 52592 | -3/Lab | Gained access to the hidden lab's interior 52610 | -3/Lab | Detected by scanners 52614 | -3/Lab | Disabled Active System Cloaker 52616 | -3/Lab | Confronted by A5 52622 | -3/Lab | MAIN.C forces arrive to investigate 52686 | -3/Lab | Destroyed A5 52717 | -3/Lab | Build established: Scavenger-Mutant 52730 | -3/Lab | Decrypted terminal 52730 | -3/Lab | Acquired modification code for an L2 power cell 52758 | -3/Lab | Found Prototype Special Weapon 52758 | -3/Lab | Identified Gui. Remote Datajack 52794 | -3/Lab | Found Prototype Energy Gun 52794 | -3/Lab | Identified Hyp. EM Gauss Rifle 52800 | -3/Lab | Found Prototype Energy Gun 52800 | -3/Lab | Identified Tachyon Dispersion Ray 52807 | -3/Lab | Found Prototype Device 52807 | -3/Lab | Identified AEGIS Remote Shield 52846 | -3/Lab | Found Alien Artifact 52846 | -3/Lab | Identified Integrated Reactor 52846 | -3/Lab | Installed Integrated Reactor, increased core energy generation (+2%) 53045 | -3/Lab | Found Alien Artifact 53051 | -3/Lab | Identified Core Regenerator 53051 | -3/Lab | Used Core Regenerator, restored core integrity (+223) 53068 | -3/Lab | Found Alien Artifact 53116 | -3/Lab | Entered Research 53116 | -2/Research | Evolved 2 slots: Weapon x2 53117 | -2/Research | Loaded intel: 98 machine locations 53268 | -2/Research | Destroyed 8 combat bots 53451 | -2/Research | Identified exit to Testing 53549 | -2/Research | Discovered new exit (range 24) 53866 | -2/Research | First assault squad dispatched 54010 | -2/Research | Intercept squad dispatched 54015 | -2/Research | Entered Testing 54016 | -2/Testing | Loaded intel: 98 machine locations 54369 | -2/Testing | Found Cld. Nova Cannon 54516 | -2/Testing | Identified exit to Garrison 54516 | -2/Testing | Entered Garrison 54517 | -2/Garrison | Loaded intel: 19 machine locations 54568 | -2/Garrison | Spotted B-90 Cyclops 54570 | -2/Garrison | Triggered checkpoint 54570 | -2/Garrison | Triggered checkpoint 54624 | -2/Garrison | Destroyed 13 combat bots 54626 | -2/Garrison | Destroyed B-90 Cyclops 54654 | -2/Garrison | Lost 11 parts (2n2u7w) 54748 | -2/Garrison | Discovered new exit (range 15) 54774 | -2/Garrison | Identified exit to Access 54784 | -2/Garrison | Expanded RIF knowledge: Alert ID Control 54791 | -2/Garrison | Entered Access 54791 | -1/Access | Evolved 2 slots: Power x1, Utility x1 54792 | -1/Access | Loaded intel: 112 machine locations 55123 | -1/Access | Repaired Hcp. Storage Unit 55252 | -1/Access | Destroyed 7 combat bots 55404 | -1/Access | Found Gamma Bomb Array 55426 | -1/Access | Found Gamma Bomb Array 55429 | -1/Access | Found Gamma Bomb Array 55569 | -1/Access | Intercept squad dispatched 55581 | -1/Access | Spotted Tracker 55581 | -1/Access | Spotted Tracker 55605 | -1/Access | Destroyed Tracker 55618 | -1/Access | Found Exp. Targeting Computer 55640 | -1/Access | Destroyed Tracker 55642 | -1/Access | Found Exp. Targeting Computer 55645 | -1/Access | Spotted Combat Programmer 55649 | -1/Access | Spotted Combat Programmer 55697 | -1/Access | Destroyed Combat Programmer 55712 | -1/Access | Destroyed Combat Programmer 55736 | -1/Access | Destroyed 18 combat bots 55740 | -1/Access | Lost 21 parts (4p4n5u8w) 55769 | -1/Access | Crushed by falling debris 55838 | -1/Access | Found Ragnarok Missile Launcher 55955 | -1/Access | Garrison activated, responded to threat 56011 | -1/Access | Discovered new exit (range 23) 56041 | -1/Access | First assault squad dispatched 56256 | -1/Access | Identified exit to Command 56258 | -1/Access | Entered Command 56259 | -1/Command | Loaded intel: 64 machine locations 56677 | -1/Command | Spotted Combat Programmer 56763 | -1/Command | Hacked MAIN.C using A7's code 56790 | -1/Command | Met MAIN.C 56793 | -1/Command | First assault squad dispatched 56881 | -1/Command | System corruption reached 10% 56907 | -1/Command | Destroyed MAIN.C Shell 56908 | -1/Command | MAIN.C activated Command garrisons 56916 | -1/Command | Spotted Combat Programmer 56927 | -1/Command | Spotted M Guard 56927 | -1/Command | Spotted M Guard 56928 | -1/Command | 0b10 Conduit disabled 56957 | -1/Command | Core integrity fell below 50% 56971 | -1/Command | Core integrity fell below 20% 56972 | -1/Command | Identified Transdimensional Reconstructor 56972 | -1/Command | Failed to warp due to unstable space 56972 | -1/Command | Destroyed by G-73 Enforcer with Heavy Laser Last Messages --------------- 56966_ Hdn. Centrium Heavy Treads destroyed. 56966_ Exp. Targeting Computer destroyed. 56966_ Surveybot 24 Chip destroyed. 56967_ Penetrated by EMDS Slug. 56967_ MAIN.C reaction time slowed by virus. 56969_ Combat Programmer suffers critical hit. 56969_ MAIN.C reaction time slowed by virus. 56970_ C-30 ARC bursts open, deploying its payload. 56970_ G-73 Enforcer unfolds itself. 56970_ B-74 Champion unfolds itself. 56970_ G-73 Enforcer unfolds itself. 56970_ I-47 Archangel unfolds itself. 56971_ MAIN.C reaction time slowed by virus. 56971_ EMDS Slug penetrates G-73 Enforcer. 56972_ EMDS Slug penetrates P-80 Master. 56972_ P-80 Master suffers critical hit. 56972_ P-80 Master destroyed. 56972_ Acquired Alien Artifact. 56972_ Identified Transdimensional Reconstructor. 56972_ Warp failed due to unstable space. Map ----- +----------------------------------------------------+ | ?????????????????????????????????????????????????? | | ?????????????????????????????????????????????????? | | ?????????????????????????????????????????????????? | | ?????????????????????????????????????????????????? | | ?????????????????????????????????????????????????? | | ?????????????????????????????????????????????????? | | ?????????????????????????????????????????????????? | | ?????????????????????????????????????????????????? | | ?????????????????????????????????????????????????? | | ?????????????????????????????????????????????????? | | ?????????????????????????????????????????????????? | | ?????????????????????????????????????????????????? | | ?????????????????????????????????????????????????# | | ????????????????????????????????????????????????## | | ???????????????????????????????????????????????### | | ????????????????????????????????????????????????#? | | ????????????????????????????????????????????????## | | ?????????????????????????????????????????????##### | | ??????????????##############??????????????????#### | | ??????"""""""? """" ##?????????????????#### | | ??????""?? "" ;###?????????????#?#### | | ??????""""" "" ;;;#################### | | ??????""""""""""" =!]*!i % * # | | ??????" " """% !!!!]gb% != !! # | | ??????"" " =!!=!g/i % ! |!% | | ?????#"" "" gg [%[@g###################"""# | | ?????# " "" g g [!!|!#???????????????###"""# | | ?????# " g =]%!#???????????????###"""# | | ?????# " g %g *["#??????????????#### T | | ?????#"""""" pgM "" ""#???????????????###+++# | | ?????#"" p """""#???????????????### | | ?????# Y g """""#???????????????### | | ?????# Yg " #??????????????#### | | ?????# #???????????????### | | ???""" " " #???????????????### | | ???""" " " """ #???????????????### | | ???""" " " " #???????????????####### | | ???### """""""" " #???????????????####### | | ???# """ " """"""""#???????????????####### | | ???# # """ " " " #????????????????###### | | ???########################?????????????????###### | | ????????????????????????????????????????????###### | | ?????????????????????????????????????????????##### | | ?????????????????????????????????????????????##### | | ??????????????????????????????????????????????#### | | ??????????????????????????????????????????????#### | | ???????????????????????????????????????????????### | | ????????????????????????????????????????????????## | | ?????????????????????????????????????????????????# | | ?????????????????????????????????????????????????? | +----------------------------------------------------+ Best States ------------- Heat Dissipation 133 Coolant Potential 100 Energy Generation 73 Energy Capacity 1700 Matter Stores 300 Matter Capacity 300 Sight Range 16 Robot Scan Range 20 Terrain Scan Range 24 Terrain Scan Density 2010 Jamming Range 8 EM Shielding 3 Armor Coverage 2400 Resistance: EM 90 Weapon Shielding 100 Phase Shifting 15 Evasion (%) 55 Targeting Accuracy 24 Recoil Reduction 3 Matter Filtering 50 Particle Charging 20 Kinecelleration 30 Salvage Targeting 4 Offensive Hacking 20 Item Schematics ----------------- Combat Drone Bay | -7/Data Miner | Free Lgt. Regenerative Plating | -7/Data Miner | Free Triangulator | -7/Data Miner | Free Exp. Terrain Scanner | -7/Data Miner | Free Exp. Terrain Scan Processor | -7/Data Miner | Free Plasma Sword | -7/Data Miner | Free Exp. Sensor Array | -5/Extension | Hacked Exp. Signal Interpreter | -3/Research | Hacked Robot Schematics ------------------ S-27 Virus | -7/Data Miner | Free G-50 Soldier | -7/Data Miner | Free G-67 Veteran | -7/Data Miner | Free I-36 Angel | -7/Data Miner | Free I-47 Archangel | -7/Data Miner | Free Fabricated ------------ Combat Drone Bay | x1 | -4/Factory Combat Drone Bay | x1 | -3/Armory Combat Drone Bay | x1 | -3/Armory Alien Tech Used ----------------- Dimensional Node Initializer Integrated Reactor Core Regenerator Transdimensional Reconstructor Achievements -------------- None Challenges ------------ None Game ------ Seed AlphaHardcellLance Manual? 0 Play Time 10:41:34 Cumulative 1003.9 hours Start 2019.12.04 @ 20:14:26 End 2019.12.08 @ 23:24:28 Sessions 11 Manual Loads 0 Difficulty Rogue Special Mode None Game No. 373 Rogue 373 Adventurer 0 Explorer 0 Win Type - Total 246 Types 213/5/11/3/3/2/9 Lore% 97 Gallery% 99 Achievement% 91 Wizard Run 0 Options --------- ASCII 0 Keyboard 0 Movement Numpad Keybinds 0 Fullscreen 1 Font 18/Terminus Map View 76x50 Tactical HUD 1 Map Filters NONE Filters NONE Steam 1 RUN: 180bd6f5-7aa2-4fb2-af09-4286483a8fd0